Workbook

Sheet Summary
A3: Paragon Mortgages (No.14) PLC
A5: Information as at the Principal Determination Date | B5: 2007-08-31 | C5: 2007-11-30 | D5: 2008-02-29 | E5: 2008-05-30 | F5: 2008-08-31 | G5: 2008-11-28 | H5: 2009-02-27 | I5: 2009-05-29 | J5: 2009-08-28 | K5: 2009-11-30 | L5: 2010-02-26 | M5: 2010-05-28 | N5: 2010-08-31 | O5: 2010-11-30 | P5: 2011-02-28 | Q5: 2011-05-31 | R5: 2011-08-31 | S5: 2011-11-30 | T5: 2012-02-29 | U5: 2012-05-31 | V5: 2012-08-31 | W5: 2012-11-30 | X5: 2013-02-28 | Y5: 2013-05-31 | Z5: 2013-08-30 | AA5: 2013-11-29 | AB5: 2014-02-28 | AC5: 2014-05-30 | AD5: 2014-08-29 | AE5: 2014-11-28 | AF5: 2015-02-27 | AG5: 2015-05-29 | AH5: 2015-08-28 | AI5: 2015-11-30 | AJ5: 2016-02-29 | AK5: 2016-05-31 | AL5: 2016-08-31 | AM5: 2016-11-30 | AN5: 2017-02-28 | AO5: 2017-05-31 | AP5: 2017-08-31 | AQ5: 2017-11-30 | AR5: 2018-02-28 | AS5: 2018-05-31 | AT5: 2018-08-31 | AU5: 2018-11-30 | AV5: 2019-02-28 | AW5: 2019-05-31 | AX5: 2019-08-30 | AY5: 2019-11-29 | AZ5: 2020-02-28 | BA5: 2020-05-29 | BB5: 2020-08-28 | BC5: 2020-11-30 | BD5: 2021-02-26 | BE5: 2021-05-28
A6: Mortgage Asset Balance | B6: 1471243 | C6: 1443231 | D6: 1410697 | E6: 1348243 | F6: 1321379 | G6: 1268150 | H6: 1221489 | I6: 1209812 | J6: 1201630 | K6: 1197499 | L6: 1188781 | M6: 1179039 | N6: 1169224 | O6: 1162055 | P6: 1151600 | Q6: 1145647 | R6: 1139892 | S6: 1133737 | T6: 1127752 | U6: 1121649 | V6: 1114151 | W6: 1108092 | X6: 1102799 | Y6: 1094792 | Z6: 1087933 | AA6: 1078556 | AB6: 1070306 | AC6: 1059091 | AD6: 1047274 | AE6: 1035190 | AF6: 1025958.477 | AG6: 1015166.788 | AH6: 1001314.858 | AI6: 988321.0329 | AJ6: 974773.8181 | AK6: 953437 | AL6: 937178.336 | AM6: 922119.5702 | AN6: 906364.0257 | AO6: 892132.8472 | AP6: 877491.2304 | AQ6: 866548.6517 | AR6: 852223.4808 | AS6: 835560.7817 | AT6: 815747.4979 | AU6: 802205.2246 | AV6: 785811.3758 | AW6: 769114.3495 | AX6: 754551.8366 | AY6: 742383.2259 | AZ6: 728674.8155 | BA6: 716604.2305 | BB6: 705566.4979 | BC6: 692884.4 | BD6: 669278.9944 | BE6: 0
A7: Total Notes | B7: =SUM(B8:B15) -> 1471243 | C7: =SUM(C8:C15) -> 1443231 | D7: =SUM(D8:D15) -> 1410697 | E7: =SUM(E8:E15)-1 -> 1348243 | F7: =SUM(F8:F15) -> 1321379 | G7: =SUM(G8:G15)-1 -> 1268150 | H7: =SUM(H8:H15)+1 -> 1221489 | I7: =SUM(I8:I15) -> 1209812 | J7: =SUM(J8:J15)+1 -> 1201630 | K7: =SUM(K8:K15)-1 -> 1197499 | L7: =SUM(L8:L15) -> 1188781 | M7: =SUM(M8:M15) -> 1179039 | N7: =SUM(N8:N15)-1 -> 1169224 | O7: =SUM(O8:O15) -> 1162055 | P7: 1151600 | Q7: 1145647 | R7: 1139892 | S7: 1133737 | T7: 1127752 | U7: =SUM(U8:U15)-1 -> 1121649 | V7: =SUM(V8:V15) -> 1114151 | W7: =SUM(W8:W15)-1 -> 1108092 | X7: =SUM(X8:X15)-1 -> 1102799 | Y7: =SUM(Y8:Y15) -> 1094792 | Z7: 1087933 | AA7: 1078556 | AB7: 1070306 | AC7: 1059091 | AD7: 1047274 | AE7: =SUM(AE8:AE15)-1 -> 1035190 | AF7: =SUM(AF8:AF15)-1 -> 1025958 | AG7: =SUM(AG8:AG15) -> 1015167 | AH7: =SUM(AH8:AH15) -> 1001315 | AI7: =SUM(AI8:AI15) -> 988321 | AJ7: =SUM(AJ8:AJ15)-1 -> 974774 | AK7: =SUM(AK8:AK15)+1 -> 953437 | AL7: =SUM(AL8:AL15) -> 937178 | AM7: =SUM(AM8:AM15) -> 922120 | AN7: =SUM(AN8:AN15) -> 906364 | AO7: =SUM(AO8:AO15) -> 892133 | AP7: =SUM(AP8:AP15)-1 -> 877491 | AQ7: =SUM(AQ8:AQ15) -> 866549 | AR7: =SUM(AR8:AR15)-1 -> 852223 | AS7: =SUM(AS8:AS15) -> 835561 | AT7: 815747 | AU7: 802205 | AV7: 785811 | AW7: 769114 | AX7: 754552 | AY7: =SUM(AY8:AY15)-1 -> 742383 | AZ7: =SUM(AZ8:AZ15) -> 728675 | BA7: =SUM(BA8:BA15) -> 716604 | BB7: =SUM(BB8:BB15)+1 -> 705566 | BC7: =SUM(BC8:BC15) -> 692884 | BD7: =SUM(BD8:BD15)+1 -> 669279 | BE7: =SUM(BE8:BE15) -> 0
A8: Class A1 Notes | B8: 757544 | C8: 740513 | D8: 720734 | E8: 682764 | F8: 666431 | G8: 634070 | H8: 605701 | I8: 598602 | J8: 593628 | K8: 591116 | L8: 585816 | M8: 579893 | N8: 573926 | O8: 569568 | P8: 563211 | Q8: 559592 | R8: 556093 | S8: 552351 | T8: 548712 | U8: 545002 | V8: 540443 | W8: 536760 | X8: 533542 | Y8: 528674 | Z8: 524504 | AA8: 518803 | AB8: 513787 | AC8: 506969 | AD8: 499784 | AE8: 492438 | AF8: 486825 | AG8: 480264 | AH8: 471843 | AI8: 463943 | AJ8: 455707 | AK8: 442734 | AL8: 432850 | AM8: 423695 | AN8: 414116 | AO8: 405464 | AP8: 396562 | AQ8: 389909 | AR8: 381200 | AS8: 371070 | AT8: 359024 | AU8: 350790 | AV8: 340823 | AW8: 330672 | AX8: 321819 | AY8: 314421 | AZ8: 306086 | BA8: 298748 | BB8: 292037 | BC8: 284327 | BD8: 269975 | BE8: 0
A9: Class A2a Notes | B9: 122154 | C9: 119408 | D9: 116218 | E9: 110096 | F9: 107462 | G9: 102244 | H9: 97669 | I9: 96525 | J9: 95722 | K9: 95318 | L9: 94463 | M9: 93508 | N9: 92546 | O9: 91843 | P9: 90818 | Q9: 90234 | R9: 89670 | S9: 89067 | T9: 88480 | U9: 87882 | V9: 87147 | W9: 86553 | X9: 86034 | Y9: 85249 | Z9: 84576 | AA9: 83657 | AB9: 82848 | AC9: 81749 | AD9: 80590 | AE9: 79406 | AF9: 78501 | AG9: 77443 | AH9: 76085 | AI9: 74811 | AJ9: 73483 | AK9: 71391 | AL9: 69797 | AM9: 68321 | AN9: 66776 | AO9: 65381 | AP9: 63946 | AQ9: 62873 | AR9: 61469 | AS9: 59835 | AT9: 57893 | AU9: 56565 | AV9: 54958 | AW9: 53321 | AX9: 51894 | AY9: 50701 | AZ9: 49357 | BA9: 48173 | BB9: 47091 | BC9: 45848 | BD9: 43534 | BE9: 0
A10: Class A2b Notes | B10: 164319 | C10: 160625 | D10: 156335 | E10: 148099 | F10: 144556 | G10: 137537 | H10: 131383 | I10: 129843 | J10: 128764 | K10: 128220 | L10: 127070 | M10: 125785 | N10: 124491 | O10: 123545 | P10: 122167 | Q10: 121382 | R10: 120623 | S10: 119811 | T10: 119022 | U10: 118217 | V10: 117228 | W10: 116429 | X10: 115731 | Y10: 114675 | Z10: 113771 | AA10: 112534 | AB10: 111446 | AC10: 109967 | AD10: 108409 | AE10: 106815 | AF10: 105598 | AG10: 104175 | AH10: 102348 | AI10: 100634 | AJ10: 98848 | AK10: 96034 | AL10: 93890 | AM10: 91904 | AN10: 89826 | AO10: 87950 | AP10: 86019 | AQ10: 84576 | AR10: 82687 | AS10: 80489 | AT10: 77876 | AU10: 76091 | AV10: 73929 | AW10: 71727 | AX10: 69806 | AY10: 68202 | AZ10: 66394 | BA10: 64802 | BB10: 63346 | BC10: 61674 | BD10: 58561 | BE10: 0
A11: Class A2c Notes | B11: 202011 | C11: 197470 | D11: 192195 | E11: 182070 | F11: 177715 | G11: 169085 | H11: 161520 | I11: 159627 | J11: 158300 | K11: 157631 | L11: 156217 | M11: 154638 | N11: 153047 | O11: 151884 | P11: 150189 | Q11: 149224 | R11: 148291 | S11: 147293 | T11: 146323 | U11: 145334 | V11: 144118 | W11: 143136 | X11: 142278 | Y11: 140979 | Z11: 139867 | AA11: 138347 | AB11: 137010 | AC11: 135191 | AD11: 133276 | AE11: 131317 | AF11: 129820 | AG11: 128070 | AH11: 125824 | AI11: 123718 | AJ11: 121522 | AK11: 118062 | AL11: 115426 | AM11: 112985 | AN11: 110431 | AO11: 108123 | AP11: 105750 | AQ11: 103976 | AR11: 101653 | AS11: 98952 | AT11: 95739 | AU11: 93544 | AV11: 90886 | AW11: 88179 | AX11: 85818 | AY11: 83845 | AZ11: 81623 | BA11: 79666 | BB11: 77876 | BC11: 75820 | BD11: 71993 | BE11: 0
A12: Class B1a Notes | B12: 51900 | C12: 51900 | D12: 51900 | E12: 51900 | F12: 51900 | G12: 51900 | H12: 51900 | I12: 51900 | J12: 51900 | K12: 51900 | L12: 51900 | M12: 51900 | N12: 51900 | O12: 51900 | P12: 51900 | Q12: 51900 | R12: 51900 | S12: 51900 | T12: 51900 | U12: 51900 | V12: 51900 | W12: 51900 | X12: 51900 | Y12: 51900 | Z12: 51900 | AA12: 51900 | AB12: 51900 | AC12: 51900 | AD12: 51900 | AE12: 51900 | AF12: 51900 | AG12: 51900 | AH12: 51900 | AI12: 51900 | AJ12: 51900 | AK12: 51900 | AL12: 51900 | AM12: 51900 | AN12: 51900 | AO12: 51900 | AP12: 51900 | AQ12: 51900 | AR12: 51900 | AS12: 51900 | AT12: 51900 | AU12: 51900 | AV12: 51900 | AW12: 51900 | AX12: 51900 | AY12: 51900 | AZ12: 51900 | BA12: 51900 | BB12: 51900 | BC12: 51900 | BD12: 51900 | BE12: 0
A13: Class B1b Notes | B13: 60697 | C13: 60697 | D13: 60697 | E13: 60697 | F13: 60697 | G13: 60697 | H13: 60697 | I13: 60697 | J13: 60697 | K13: 60697 | L13: 60697 | M13: 60697 | N13: 60697 | O13: 60697 | P13: 60697 | Q13: 60697 | R13: 60697 | S13: 60697 | T13: 60697 | U13: 60697 | V13: 60697 | W13: 60697 | X13: 60697 | Y13: 60697 | Z13: 60697 | AA13: 60697 | AB13: 60697 | AC13: 60697 | AD13: 60697 | AE13: 60697 | AF13: 60697 | AG13: 60697 | AH13: 60697 | AI13: 60697 | AJ13: 60697 | AK13: 60697 | AL13: 60697 | AM13: 60697 | AN13: 60697 | AO13: 60697 | AP13: 60697 | AQ13: 60697 | AR13: 60697 | AS13: 60697 | AT13: 60697 | AU13: 60697 | AV13: 60697 | AW13: 60697 | AX13: 60697 | AY13: 60697 | AZ13: 60697 | BA13: 60697 | BB13: 60697 | BC13: 60697 | BD13: 60697 | BE13: 0
A14: Class Cla Notes | B14: 20000 | C14: 20000 | D14: 20000 | E14: 20000 | F14: 20000 | G14: 20000 | H14: 20000 | I14: 20000 | J14: 20000 | K14: 20000 | L14: 20000 | M14: 20000 | N14: 20000 | O14: 20000 | P14: 20000 | Q14: 20000 | R14: 20000 | S14: 20000 | T14: 20000 | U14: 20000 | V14: 20000 | W14: 20000 | X14: 20000 | Y14: 20000 | Z14: 20000 | AA14: 20000 | AB14: 20000 | AC14: 20000 | AD14: 20000 | AE14: 20000 | AF14: 20000 | AG14: 20000 | AH14: 20000 | AI14: 20000 | AJ14: 20000 | AK14: 20000 | AL14: 20000 | AM14: 20000 | AN14: 20000 | AO14: 20000 | AP14: 20000 | AQ14: 20000 | AR14: 20000 | AS14: 20000 | AT14: 20000 | AU14: 20000 | AV14: 20000 | AW14: 20000 | AX14: 20000 | AY14: 20000 | AZ14: 20000 | BA14: 20000 | BB14: 20000 | BC14: 20000 | BD14: 20000 | BE14: 0
A15: Class C1b Notes | B15: 92618 | C15: 92618 | D15: 92618 | E15: 92618 | F15: 92618 | G15: 92618 | H15: 92618 | I15: 92618 | J15: 92618 | K15: 92618 | L15: 92618 | M15: 92618 | N15: 92618 | O15: 92618 | P15: 92618 | Q15: 92618 | R15: 92618 | S15: 92618 | T15: 92618 | U15: 92618 | V15: 92618 | W15: 92618 | X15: 92618 | Y15: 92618 | Z15: 92618 | AA15: 92618 | AB15: 92618 | AC15: 92618 | AD15: 92618 | AE15: 92618 | AF15: 92618 | AG15: 92618 | AH15: 92618 | AI15: 92618 | AJ15: 92618 | AK15: 92618 | AL15: 92618 | AM15: 92618 | AN15: 92618 | AO15: 92618 | AP15: 92618 | AQ15: 92618 | AR15: 92618 | AS15: 92618 | AT15: 92618 | AU15: 92618 | AV15: 92618 | AW15: 92618 | AX15: 92618 | AY15: 92618 | AZ15: 92618 | BA15: 92618 | BB15: 92618 | BC15: 92618 | BD15: 92618 | BE15: 0
A16: Class B and C Notes as a % of the Total Notes | B16: =SUM(B12:B15)/B7 -> 0.1530780435 | C16: 0.1560491702 | D16: 0.1596480321 | E16: 0.1670433297 | F16: 0.1704393668 | G16: 0.1775933446 | H16: 0.1843774279 | I16: 0.1861570227 | J16: 0.1874245816 | K16: 0.1880711383 | L16: 0.1894503697 | M16: 0.191015734 | N16: 0.1926192073 | O16: 0.193807522 | P16: 0.1955670372 | Q16: 0.1965832407 | R16: 0.1975757352 | S16: 0.1986483638 | T16: =SUM(T12:T15)/T7 -> 0.1997025942 | U16: 0.2007891952 | V16: 0.2021404639 | W16: 0.2032457594 | X16: 0.2042212588 | Y16: 0.2057148755 | Z16: =SUM(Z12:Z15)/Z7 -> 0.2070118289 | AA16: 0.2088115962 | AB16: 0.2104211319 | AC16: 0.212649338 | AD16: 0.2150487838 | AE16: 0.2175590954 | AF16: =SUM(AF12:AF15)/AF7 -> 0.2195167833 | AG16: 0.221850198 | AH16: =SUM(AH12:AH15)/AH7 -> 0.2249192312 | AI16: 0.2278763681 | AJ16: =SUM(AJ12:AJ15)/AJ7 -> 0.2310432982 | AK16: 0.2362138243 | AL16: =SUM(AL12:AL15)/AL7 -> 0.2403118725 | AM16: 0.2442361081 | AN16: =SUM(AN12:AN15)/AN7 -> 0.2484818461 | AO16: 0.2524455434 | AP16: =SUM(AP12:AP15)/AP7 -> 0.256657903 | AQ16: 0.2598987478 | AR16: =SUM(AR12:AR15)/AR7 -> 0.2642676858 | AS16: 0.2695374724 | AT16: =SUM(AT12:AT15)/AT7 -> 0.2760843742 | AU16: 0.2807449467 | AV16: =SUM(AV12:AV15)/AV7 -> 0.2866019946 | AW16: 0.2928239507 | AX16: =SUM(AX12:AX15)/AX7 -> 0.2984751217 | AY16: 0.3033676687 | AZ16: =SUM(AZ12:AZ15)/AZ7 -> 0.3090746904 | BA16: 0.3142809697 | BB16: =SUM(BB12:BB15)/BB7 -> 0.3191976371 | BC16: 0.3250399778 | BD16: =SUM(BD12:BD15)/BD7 -> 0.3365039094 | BE16: 0
A17: Overall Lifetime Redemption Rate | B17: 0.0603 | C17: 0.0705 | D17: 0.0768 | E17: 0.0983 | F17: 0.0956 | G17: 0.1046 | H17: 0.1093 | I17: 0.1016 | J17: 0.0944 | K17: 0.0875 | L17: 0.0826 | M17: 0.0787 | N17: 0.0754 | O17: 0.0721 | P17: 0.0698 | Q17: 0.067 | R17: 0.0645 | S17: 0.0623 | T17: 0.0602 | U17: 0.0584 | V17: 0.057 | W17: 0.0555 | X17: 0.054 | Y17: 0.053 | Z17: 0.0519 | AA17: 0.0513 | AB17: 0.0505 | AC17: 0.0502 | AD17: 0.05 | AE17: 0.0499 | AF17: 0.0495 | AG17: 0.0493 | AH17: 0.0495 | AI17: 0.0496 | AJ17: 0.0498 | AK17: 0.0508 | AL17: 0.0512 | AM17: 0.0518 | AN17: 0.0522 | AO17: 0.0524 | AP17: 0.0527 | AQ17: 0.0527 | AR17: 0.0531 | AS17: 0.0536 | AT17: 0.0545 | AU17: 0.0547 | AV17: 0.0552 | AW17: 0.0558 | AX17: 0.0562 | AY17: 0.0563 | AZ17: 0.0566 | BA17: 0.0568 | BB17: 0.0568 | BC17: 0.0571 | BD17: 0.0584 | BE17: 1
A18: Quarterly Redemption Rate | B18: 0.0274 | C18: 0.0229 | D18: 0.0244 | E18: 0.047 | F18: 0.0213 | G18: 0.0412 | H18: 0.0373 | I18: 0.0104 | J18: 0.0076 | K18: 0.0043 | L18: 0.0075 | M18: 0.0083 | N18: 0.0085 | O18: 0.0064 | P18: 0.0091 | Q18: 0.0054 | R18: 0.0053 | S18: 0.0055 | T18: 0.0053 | U18: 0.0055 | V18: 0.0067 | W18: 0.0055 | X18: 0.0048 | Y18: 0.0073 | Z18: 0.0065 | AA18: 0.0088 | AB18: 0.0077 | AC18: 0.0105 | AD18: 0.0113 | AE18: 0.0119 | AF18: 0.0093 | AG18: 0.011 | AH18: 0.014 | AI18: 0.0133 | AJ18: 0.0145 | AK18: 0.0225 | AL18: 0.0172 | AM18: 0.0185 | AN18: 0.0173 | AO18: 0.0158 | AP18: 0.0165 | AQ18: 0.0138 | AR18: 0.0173 | AS18: 0.0196 | AT18: 0.0243 | AU18: 0.0169 | AV18: 0.0204 | AW18: 0.0212 | AX18: 0.0189 | AY18: 0.0161 | AZ18: 0.0185 | BA18: 0.0166 | BB18: 0.0154 | BC18: 0.018 | BD18: 0.0341 | BE18: 1
A19: Further Advances released in the quarter | B19: 8430 | C19: 4122 | D19: 2098 | E19: 3537 | F19: 1469 | G19: 1161 | H19: 445 | I19: 921 | J19: 542 | K19: 623 | L19: 143 | M19: 107 | N19: 59 | O19: 115 | P19: 62 | Q19: 240 | R19: 49 | S19: 51 | T19: 0 | U19: 2 | V19: 27 | W19: 20 | X19: 25 | Y19: 49 | Z19: 245 | AA19: 219 | AB19: 98 | AC19: 50 | AD19: 103 | AE19: 385 | AF19: 389 | AG19: 511 | AH19: 311 | AI19: 342 | AJ19: 708 | AK19: 552 | AL19: 145 | AM19: 2283 | AN19: 158 | AO19: 133 | AP19: 35 | AQ19: 1138 | AR19: 628 | AS19: 25 | AT19: 482 | AU19: 216 | AV19: 0 | AW19: 0 | AX19: 0 | AY19: 0 | AZ19: 0 | BA19: 0 | BB19: 0 | BC19: 0 | BD19: 0 | BE19: 0
A20: First Loss Fund Balance | B20: 28505 | C20: 28505 | D20: 28505 | E20: 28505 | F20: 28505 | G20: 28505 | H20: 28505 | I20: 28505 | J20: 28505 | K20: 28505 | L20: 28505 | M20: 28505 | N20: 28505 | O20: 28505 | P20: 28505 | Q20: 28505 | R20: 28505 | S20: 28505 | T20: 28505 | U20: 28505 | V20: 28505 | W20: 28505 | X20: 28505 | Y20: 28505 | Z20: 28505 | AA20: 28505 | AB20: 28505 | AC20: 28505 | AD20: 28505 | AE20: 28505 | AF20: 28505 | AG20: 28505 | AH20: 28505 | AI20: 28505 | AJ20: 28505 | AK20: 28505 | AL20: 28505 | AM20: 28505 | AN20: 28505 | AO20: 28505 | AP20: 28505 | AQ20: 28505 | AR20: 28505 | AS20: 28505 | AT20: 28505 | AU20: 28505 | AV20: 28505 | AW20: 28505 | AX20: 28505 | AY20: 28505 | AZ20: 28505 | BA20: 28505 | BB20: 28505 | BC20: 28505 | BD20: 28505 | BE20: 0
A21: First Loss Fund as a % of the Mortgages | B21: =+B20/B6 -> 0.01937477358 | C21: 0.01975082298 | D21: 0.02020632354 | E21: 0.02114233117 | F21: 0.0215721606 | G21: 0.02247762489 | H21: 0.02333627237 | I21: 0.02356151204 | J21: 0.02372194436 | K21: 0.02380377771 | L21: 0.0239783442 | M21: 0.02417646914 | N21: 0.02437941746 | O21: 0.02452982002 | P21: 0.02475251824 | Q21: 0.02488113703 | R21: 0.02500675503 | S21: 0.02514251542 | T21: =+T20/T6 -> 0.02527594719 | U21: 0.02541347605 | V21: 0.02558450336 | W21: 0.02572439834 | X21: 0.0258478653 | Y21: 0.02603690929 | Z21: =+Z20/Z6 -> 0.02620106201 | AA21: 0.02642885488 | AB21: 0.0266325705 | AC21: 0.02691458996 | AD21: 0.02721828289 | AE21: 0.02753600788 | AF21: =+AF20/AF6 -> 0.02778377551 | AG21: 0.02807912979 | AH21: =+AH20/AH6 -> 0.02846756919 | AI21: 0.02884184294 | AJ21: =+AJ20/AJ6 -> 0.02924268119 | AK21: 0.0298970986 | AL21: =+AL20/AL6 -> 0.03041576924 | AM21: 0.03091247699 | AN21: =+AN20/AN6 -> 0.03144983604 | AO21: 0.03195151943 | AP21: =+AP20/AP6 -> 0.03248465513 | AQ21: 0.03289486395 | AR21: =+AR20/AR6 -> 0.03344779936 | AS21: 0.03411481322 | AT21: =+AT20/AT6 -> 0.03494341089 | AU21: 0.03553330136 | AV21: =+AV20/AV6 -> 0.03627460848 | AW21: 0.03706210919 | AX21: =+AX20/AX6 -> 0.03777739132 | AY21: 0.03839661108 | AZ21: =+AZ20/AZ6 -> 0.03911895868 | BA21: 0.03977788407 | BB21: =+BB20/BB6 -> 0.04040016084 | BC21: 0.04113961867 | BD21: =+BD20/BD6 -> 0.04259060906 | BE21: 0
A22: Opening PDL Balance | B22: 0 | C22: 0 | D22: 0 | E22: 0 | F22: 0 | G22: 0 | H22: 0 | I22: 0 | J22: 0 | K22: 0 | L22: 0 | M22: 0 | N22: 0 | O22: 0 | P22: 0 | Q22: 0 | R22: 0 | S22: 0 | T22: 0 | U22: 0 | V22: 0 | W22: 0 | X22: 0 | Y22: 0 | Z22: 0 | AA22: 0 | AB22: 0 | AC22: 0 | AD22: 0 | AE22: 0 | AF22: 0 | AG22: 0 | AH22: 0 | AI22: 0 | AJ22: 0 | AK22: 0 | AL22: 0 | AM22: 0 | AN22: 0 | AO22: 0 | AP22: 0 | AQ22: 0 | AR22: 0 | AS22: 0 | AT22: 0 | AU22: 0 | AV22: 0 | AW22: 0 | AX22: 0 | AY22: 0 | AZ22: 0 | BA22: 0 | BB22: 0 | BC22: 0 | BD22: 0 | BE22: 0
A23: Quarterly Losses | B23: =SUM(B93+B125) -> 5 | C23: -5 | D23: 8 | E23: -5 | F23: 26 | G23: 213 | H23: =SUM(H93+H125) -> 158 | I23: 208 | J23: 573 | K23: 112 | L23: 259 | M23: 626 | N23: =SUM(N93+N125) -> 177 | O23: 229 | P23: 194 | Q23: 179 | R23: 336 | S23: 47 | T23: =SUM(T93+T125) -> 266 | U23: -53 | V23: 203 | W23: 63 | X23: 40 | Y23: 253 | Z23: =SUM(Z93+Z125) -> 268 | AA23: 203 | AB23: 409 | AC23: 167 | AD23: 96 | AE23: 426 | AF23: =SUM(AF93+AF125) -> 292 | AG23: 72 | AH23: =SUM(AH93+AH125) -> 177 | AI23: 26 | AJ23: =SUM(AJ93+AJ125) -> 355 | AK23: 84 | AL23: =SUM(AL93+AL125) -> 226 | AM23: 386 | AN23: =SUM(AN93+AN125) -> 398 | AO23: 29 | AP23: =SUM(AP93+AP125) -> 147 | AQ23: 254 | AR23: =SUM(AR93+AR125) -> -18 | AS23: 97 | AT23: =SUM(AT93+AT125) -> 166 | AU23: 25 | AV23: =SUM(AV93+AV125) -> 499 | AW23: 44 | AX23: =SUM(AX93+AX125) -> -105 | AY23: 62 | AZ23: =SUM(AZ93+AZ125) -> 260 | BA23: 219 | BB23: =SUM(BB93+BB125) -> 20 | BC23: 67 | BD23: =SUM(BD93+BD125) -> 537 | BE23: 109
A24: Quarterly Loss Rate (annualised) | B24: =1-(1-B23/B6)^4 -> 1.359387813e-05 | C24: -1.385786748e-05 | D24: 2.268362929e-05 | E24: -1.483420367e-05 | F24: 7.870333229e-05 | G24: 0.0006716755665 | H24: 0.0005173009225 | I24: 0.0006875328225 | J24: 0.001906045208 | K24: 0.0003740605653 | L24: 0.0008711961907 | M24: 0.002122072715 | N24: 0.0006053923355 | O24: 0.000788025755 | P24: 0.000673674829 | Q24: 0.0006248279024 | R24: 0.001178537854 | S24: 0.0001658129794 | T24: =1-(1-T23/T6)^4 -> 0.0009431360926 | U24: 0 | V24: =1-(1-V23/V6)^4 -> 0.0007286068993 | W24: 0.0002273985462 | X24: 0.0001450774757 | Y24: 0.000924056125 | Z24: 0.0009849907599 | AA24: 0.0007526459297 | AB24: =1-(1-AB23/AB6)^4 -> 0.001527658896 | AC24: 0.0006305803929 | AD24: 0.0003666158076 | AE24: =1-(1-AE23/AE6)^4 -> 0.001645058827 | AF24: 0.001137961702 | AG24: =1-(1-AG23/AG6)^4 -> 0.0002836670442 | AH24: 0.0007068828445 | AI24: =1-(1-AI23/AI6)^4 -> 0.0001052248133 | AJ24: 0.001455952595 | AK24: =1-(1-AK23/AK6)^4 -> 0.0003523626617 | AL24: 0.000964248766 | AM24: =1-(1-AM23/AM6)^4 -> 0.001673352178 | AN24: 0.001755312049 | AO24: =1-(1-AO23/AO6)^4 -> 0.0001300191383 | AP24: 0.0006699238019 | AQ24: =1-(1-AQ23/AQ6)^4 -> 0.001171951944 | AR24: 0 | AS24: 0.000464277943 | AT24: =1-(1-AT23/AT6)^4 -> 0.0008137289404 | AU24: 0.0001246505538 | AV24: =1-(1-AV23/AV6)^4 -> 0.002537631344 | AW24: 0.0002288149969 | AX24: 0 | AY24: 0.000334017426 | AZ24: =1-(1-AZ23/AZ6)^4 -> 0.001426484741 | BA24: 0.001221871817 | BB24: =1-(1-BB23/BB6)^4 -> 0.0001133792474 | BC24: 0.0003867328088 | BD24: =1-(1-BD23/BD6)^4 -> 0.003205563315 | BE24: 0
A25: PDL Replenishment made during the quarter (-ve = recoveries) | B25: 5 | C25: -5 | D25: 8 | E25: -5 | F25: 26 | G25: 213 | H25: 158 | I25: 208 | J25: 573 | K25: 112 | L25: 259 | M25: 626 | N25: 177 | O25: 229 | P25: 194 | Q25: 179 | R25: 336 | S25: 47 | T25: 266 | U25: -53 | V25: 203 | W25: 63 | X25: 40 | Y25: 253 | Z25: 268 | AA25: 203 | AB25: 409 | AC25: 167 | AD25: 96 | AE25: 426 | AF25: 292 | AG25: 72 | AH25: 177 | AI25: 26 | AJ25: 355 | AK25: 84 | AL25: 226 | AM25: 386 | AN25: 398 | AO25: 29 | AP25: 147 | AQ25: 254 | AR25: -18 | AS25: 97 | AT25: 166 | AU25: 25 | AV25: 499 | AW25: 44 | AX25: -105 | AY25: 62 | AZ25: 260 | BA25: 219 | BB25: 20 | BC25: 67 | BD25: 537 | BE25: 109
A26: Outstanding PDL at end of the quarter | B26: =B22+B23-B25 -> 0 | C26: 0 | D26: 0 | E26: 0 | F26: 0 | G26: 0 | H26: 0 | I26: 0 | J26: 0 | K26: 0 | L26: =L22+L23-L25 -> 0 | M26: 0 | N26: 0 | O26: 0 | P26: 0 | Q26: 0 | R26: 0 | S26: 0 | T26: =T22+T23-T25 -> 0 | U26: 0 | V26: 0 | W26: 0 | X26: 0 | Y26: 0 | Z26: =Z22+Z23-Z25 -> 0 | AA26: 0 | AB26: 0 | AC26: 0 | AD26: 0 | AE26: 0 | AF26: =AF22+AF23-AF25 -> 0 | AG26: 0 | AH26: =AH22+AH23-AH25 -> 0 | AI26: 0 | AJ26: =AJ22+AJ23-AJ25 -> 0 | AK26: 0 | AL26: =AL22+AL23-AL25 -> 0 | AM26: 0 | AN26: =AN22+AN23-AN25 -> 0 | AO26: 0 | AP26: 0 | AQ26: =AQ22+AQ23-AQ25 -> 0 | AR26: 0 | AS26: =AS22+AS23-AS25 -> 0 | AT26: 0 | AU26: =AU22+AU23-AU25 -> 0 | AV26: 0 | AW26: =AW22+AW23-AW25 -> 0 | AX26: 0 | AY26: =AY22+AY23-AY25 -> 0 | AZ26: 0 | BA26: =BA22+BA23-BA25 -> 0 | BB26: 0 | BC26: =BC22+BC23-BC25 -> 0 | BD26: 0 | BE26: =BE22+BE23-BE25 -> 0
A27: Spread Trap repayment in the quarter | B27: N/A | C27: N/A | D27: N/A | E27: N/A | F27: N/A | G27: N/A | H27: N/A | I27: N/A | J27: N/A | K27: N/A | L27: N/A | M27: N/A | N27: N/A | O27: N/A | P27: N/A | Q27: N/A | R27: N/A | S27: N/A | T27: N/A | U27: N/A | V27: N/A | W27: N/A | X27: N/A | Y27: N/A | Z27: N/A | AA27: N/A | AB27: N/A | AC27: N/A | AD27: N/A | AE27: N/A | AF27: N/A | AG27: N/A | AH27: N/A | AI27: N/A | AJ27: N/A | AK27: N/A | AL27: N/A | AM27: N/A | AN27: N/A | AO27: N/A | AP27: N/A | AQ27: N/A | AR27: N/A | AS27: N/A | AT27: N/A | AU27: N/A | AV27: N/A | AW27: N/A | AX27: N/A | AY27: N/A | AZ27: N/A | BA27: N/A | BB27: N/A | BC27: N/A | BD27: N/A | BE27: N/A
A28: Spread % (WA Funding Rate less WA Interest Rate) | B28: -0.0037 | C28: -0.0135 | D28: -0.011 | E28: -0.0065 | F28: -0.0061 | G28: -0.002 | H28: 0.0127 | I28: 0.0152 | J28: 0.0165 | K28: 0.0192 | L28: 0.0185 | M28: 0.0175 | N28: 0.0166 | O28: 0.0167 | P28: 0.0163 | Q28: 0.0161 | R28: 0.0159 | S28: 0.0154 | T28: 0.0149 | U28: 0.0137 | V28: 0.0138 | W28: 0.0147 | X28: 0.0153 | Y28: 0.0153 | Z28: 0.0152 | AA28: 0.0152 | AB28: 0.0151 | AC28: 0.0152 | AD28: 0.0148 | AE28: 0.0149 | AF28: 0.0149 | AG28: 0.0149 | AH28: 0.0149 | AI28: 0.0148 | AJ28: 0.0147 | AK28: 0.0147 | AL28: 0.0149 | AM28: 0.0146 | AN28: 0.0151 | AO28: 0.0154 | AP28: 0.0156 | AQ28: 0.0152 | AR28: 0.0156 | AS28: 0.0155 | AT28: 0.0151 | AU28: 0.0155 | AV28: 0.0151 | AW28: 0.0153 | AX28: 0.0153 | AY28: 0.0152 | AZ28: 0.0151 | BA28: 0.01477813107 | BB28: 0.01500208023 | BC28: 0.0154 | BD28: 0.0156 | BE28: 0
A29: Total Income as a % of the Mortgages | B29: 0.037 | C29: 0.0209 | D29: 0.0199 | E29: 0.0186 | F29: 0.0188 | G29: 0.018 | H29: 0.0122 | I29: 0.0096 | J29: 0.0086 | K29: 0.0069 | L29: 0.0067 | M29: 0.007 | N29: 0.0057 | O29: 0.0065 | P29: 0.0079 | Q29: 0.0066 | R29: 0.0067 | S29: 0.0067 | T29: 0.0071 | U29: 0.0075 | V29: 0.0075 | W29: 0.0067 | X29: 0.0063 | Y29: 0.0064 | Z29: 0.0063 | AA29: 0.0064 | AB29: 0.0065 | AC29: 0.0062 | AD29: 0.0064 | AE29: 0.0065 | AF29: 0.0063 | AG29: 0.0065 | AH29: 0.0064 | AI29: 0.0064 | AJ29: 0.0066 | AK29: 0.0065 | AL29: 0.0063 | AM29: 0.0063 | AN29: 0.0062 | AO29: 0.0059 | AP29: 0.006 | AQ29: 0.0061 | AR29: 0.0063 | AS29: 0.0066 | AT29: 0.0067 | AU29: 0.0068 | AV29: 0.0077 | AW29: 0.0071 | AX29: 0.0066 | AY29: 0.0071 | AZ29: 0.0068 | BA29: 0.005847600096 | BB29: 0.004792046932 | BC29: 0.0053 | BD29: 0.0058 | BE29: 0
A30: Quarterly surplus income to the Issuer | B30: 0 | C30: 3110 | D30: 3830 | E30: 3608 | F30: 3505 | G30: 3079 | H30: 1452 | I30: 2382 | J30: 2681 | K30: 3163 | L30: 3284 | M30: 3500 | N30: 2642 | O30: 3502 | P30: 5169 | Q30: 3355 | R30: 3316 | S30: 3440 | T30: 3176 | U30: 3524 | V30: 3373 | W30: 3538 | X30: 3609 | Y30: 3278 | Z30: 3289 | AA30: 3480 | AB30: 3300 | AC30: 3181 | AD30: 3366 | AE30: 2995 | AF30: 2917 | AG30: 3344 | AH30: 3020 | AI30: 3179 | AJ30: 2998 | AK30: 3101 | AL30: 2724 | AM30: 2892 | AN30: 2846 | AO30: 2909 | AP30: 2947 | AQ30: 2774 | AR30: 2817 | AS30: 2656 | AT30: 2559 | AU30: 2396 | AV30: 2482 | AW30: 2450 | AX30: 2242 | AY30: 2439 | AZ30: 1942 | BA30: 1818 | BB30: 1761 | BC30: 2339 | BD30: 2127 | BE30: =28505+2246 -> 30751
A31: Surplus Income as a % of the Mortgages | B31: =B30/1500275 -> 0 | C31: =+C30/B6 -> 0.002113858825 | D31: 0.002653767831 | E31: 0.002557600959 | F31: 0.002599679731 | G31: 0.002330141466 | H31: 0.001144974964 | I31: 0.001950078961 | J31: 0.002216046791 | K31: 0.00263225785 | L31: 0.002742382248 | M31: 0.002944192412 | N31: 0.00224080798 | O31: 0.002995148919 | P31: 0.004448154347 | Q31: 0.002913337965 | R31: 0.002894434324 | S31: 0.003017829759 | T31: 0.002801355164 | U31: 0.003124800488 | V31: 0.003007179608 | W31: 0.003175512116 | X31: 0.003256949784 | Y31: 0.0029724365 | Z31: 0.003004223633 | AA31: 0.003198726392 | AB31: 0.003059646416 | AC31: 0.002972047246 | AD31: 0.003178197152 | AE31: 0.002859805552 | AF31: 0.002817840203 | AG31: 0.00325939117 | AH31: 0.002974880616 | AI31: 0.003174825556 | AJ31: 0.003033427298 | AK31: 0.003181250812 | AL31: 0.00285703198 | AM31: 0.003085858784 | AN31: 0.003086367638 | AO31: 0.003209527207 | AP31: 0.00330331969 | AQ31: 0.003161285155 | AR31: 0.003250827284 | AS31: 0.003116553416 | AT31: 0.003062613823 | AU31: 0.002937183388 | AV31: 0.003093971373 | AW31: 0.003117796555 | AX31: 0.002915041179 | AY31: 0.003232382299 | AZ31: 0.002615899622 | BA31: 0.002494940077 | BB31: 0.002457423394 | BC31: 0.003315066697 | BD31: 0.003069776141 | BE31: 0
A32: Payment Holidays as a percentage of the Mortgages | B32: N/A | C32: N/A | D32: N/A | E32: N/A | F32: N/A | G32: N/A | H32: N/A | I32: N/A | J32: N/A | K32: N/A | L32: N/A | M32: N/A | N32: N/A | O32: N/A | P32: N/A | Q32: N/A | R32: N/A | S32: N/A | T32: N/A | U32: N/A | V32: N/A | W32: N/A | X32: N/A | Y32: N/A | Z32: N/A | AA32: N/A | AB32: N/A | AC32: N/A | AD32: N/A | AE32: N/A | AF32: N/A | AG32: N/A | AH32: N/A | AI32: N/A | AJ32: N/A | AK32: N/A | AL32: N/A | AM32: N/A | AN32: N/A | AO32: N/A | AP32: N/A | AQ32: N/A | AR32: N/A | AS32: N/A | AT32: N/A | AU32: N/A | AV32: N/A | AW32: N/A | AX32: N/A | AY32: N/A | AZ32: N/A | BA32: 0.1938841424 | BB32: 0.08095051555 | BC32: 0.00482931284 | BD32: 0.004307233372 | BE32: 0
A33: Losses as a % of the Mortgages | B33: =+B23/1500275 -> 3.332722334e-06 | C33: =+C23/B6 -> -3.398486858e-06 | D33: 5.543118184e-06 | E33: -3.544347227e-06 | F33: 1.928435749e-05 | G33: 0.0001611952362 | H33: 0.0001245909396 | I33: 0.0001702839731 | J33: 0.0004736273074 | K33: 9.320672753e-05 | L33: 0.0002162841055 | M33: 0.0005265898429 | N33: 0.0001501222606 | O33: 0.0001958563971 | P33: 0.0001669456265 | Q33: 0.0001554359152 | R33: 0.000293284057 | S33: 4.123197636e-05 | T33: 0.0002346223154 | U33: -4.699614809e-05 | V33: 0.0001809835341 | W33: 5.654529772e-05 | X33: 3.609808572e-05 | Y33: 0.0002294162399 | Z33: 0.0002447953584 | AA33: 0.0001865923729 | AB33: 0.0003792107225 | AC33: 0.0001560301447 | AD33: 9.064376904e-05 | AE33: 0.000406770339 | AF33: 0.0002820738222 | AG33: 7.017827878e-05 | AH33: 0.0001743555858 | AI33: 2.596585859e-05 | AJ33: 0.0003591950269 | AK33: 8.617383688e-05 | AL33: 0.0002370371613 | AM33: 0.0004118746509 | AN33: 0.0004316143078 | AO33: 3.199597422e-05 | AP33: 0.0001647736662 | AQ33: =+AQ23/AP6 -> 0.0002894615823 | AR33: -2.077205932e-05 | AS33: 0.0001138199101 | AT33: 0.0001986689701 | AU33: 3.064673819e-05 | AV33: 0.0006220353404 | AW33: 5.599308098e-05 | AX33: 0 | AY33: =+AY23/AX6 -> 8.216797971e-05 | AZ33: 0.0003502234303 | BA33: 0.0003005455868 | BB33: 2.790940822e-05 | BC33: 9.495915721e-05 | BD33: 0.0007750210569 | BE33: 0
A34: Number of Properties in Possession | B34: =SUM(B91+B123) -> 0 | C34: 2 | D34: 2 | E34: 2 | F34: 0 | G34: 0 | H34: =SUM(H91+H123) -> 0 | I34: 1 | J34: 0 | K34: 0 | L34: 0 | M34: 0 | N34: =SUM(N91+N123) -> 0 | O34: 0 | P34: 0 | Q34: 0 | R34: 0 | S34: 0 | T34: =SUM(T91+T123) -> 0 | U34: 0 | V34: 0 | W34: 0 | X34: 0 | Y34: 0 | Z34: =SUM(Z91+Z123) -> 0 | AA34: 0 | AB34: 0 | AC34: 0 | AD34: 3 | AE34: 2 | AF34: 1 | AG34: 1 | AH34: 0 | AI34: 1 | AJ34: 0 | AK34: 1 | AL34: =SUM(AL91+AL123) -> 0 | AM34: 0 | AN34: =SUM(AN91+AN123) -> 0 | AO34: 0 | AP34: =SUM(AP91+AP123) -> 0 | AQ34: 0 | AR34: =SUM(AR91+AR123) -> 0 | AS34: 0 | AT34: =SUM(AT91+AT123) -> 0 | AU34: 0 | AV34: =SUM(AV91+AV123) -> 0 | AW34: 0 | AX34: =SUM(AX91+AX123) -> 0 | AY34: 1 | AZ34: =SUM(AZ91+AZ123) -> 1 | BA34: 1 | BB34: =SUM(BB91+BB123) -> 0 | BC34: 0 | BD34: =SUM(BD91+BD123) -> 0 | BE34: 0
A35: Appointment of a Receiver of Rent | B35: =+B92+B124 -> 4 | C35: 9 | D35: 35 | E35: 46 | F35: 75 | G35: 109 | H35: =+H92+H124 -> 181 | I35: 202 | J35: 190 | K35: 200 | L35: 187 | M35: 174 | N35: =+N92+N124 -> 167 | O35: 161 | P35: 169 | Q35: 180 | R35: 183 | S35: 200 | T35: =+T92+T124 -> 195 | U35: 189 | V35: 186 | W35: 187 | X35: 188 | Y35: 188 | Z35: =+Z92+Z124 -> 183 | AA35: 172 | AB35: 167 | AC35: 156 | AD35: 150 | AE35: 144 | AF35: 141 | AG35: 152 | AH35: 142 | AI35: 137 | AJ35: 136 | AK35: 129 | AL35: 130 | AM35: 128 | AN35: =+AN92+AN124 -> 127 | AO35: 124 | AP35: =+AP92+AP124 -> 125 | AQ35: 119 | AR35: =+AR92+AR124 -> 117 | AS35: 117 | AT35: =+AT92+AT124 -> 113 | AU35: 114 | AV35: =+AV92+AV124 -> 108 | AW35: 108 | AX35: =+AX92+AX124 -> 122 | AY35: 122 | AZ35: =+AZ92+AZ124 -> 114 | BA35: 113 | BB35: =+BB92+BB124 -> 112 | BC35: 108 | BD35: =+BD92+BD124 -> 102 | BE35: 0
A36: Average Number of months (Possessions) in Arrears at the Sale Date | B36: 0 | C36: 0 | D36: 0 | E36: 0 | F36: 8.68 | G36: 0 | H36: 0 | I36: 0 | J36: 9.92 | K36: 0 | L36: 0 | M36: 0 | N36: 0 | O36: 0 | P36: 0 | Q36: 0 | R36: 0 | S36: 0 | T36: 0 | U36: 0 | V36: 0 | W36: 0 | X36: 0 | Y36: 0 | Z36: 0 | AA36: 0 | AB36: 0 | AC36: 0 | AD36: 0 | AE36: 6.54 | AF36: 4.73 | AG36: 0 | AH36: 46.06 | AI36: 0 | AJ36: 4.76 | AK36: 0 | AL36: 12.73 | AM36: 0 | AN36: 0 | AO36: 0 | AP36: 0 | AQ36: 0 | AR36: 0 | AS36: 0 | AT36: 0 | AU36: 0 | AV36: 0 | AW36: 0 | AX36: 0 | AY36: 0 | AZ36: 0 | BA36: 0 | BB36: 11.43 | BC36: 0 | BD36: 0 | BE36: 0
A37: Average Number of months (RoR) in Arrears at the Sale Date | B37: 0 | C37: 0 | D37: 5 | E37: 0 | F37: 10.5 | G37: 9.68 | H37: 12.52 | I37: 33.35 | J37: 30.05 | K37: 8.46 | L37: 28.45 | M37: 15.36 | N37: 15.44 | O37: 10.56 | P37: 5.35 | Q37: 15.23 | R37: 6.31 | S37: 0 | T37: 9.44 | U37: 11.56 | V37: 9.94 | W37: 0.86 | X37: 11.42 | Y37: 3.24 | Z37: 1.1 | AA37: 0 | AB37: 8.43 | AC37: 0.39 | AD37: 2.15 | AE37: 2.75 | AF37: 2.52 | AG37: 0 | AH37: 2.05 | AI37: 0 | AJ37: 0 | AK37: 0 | AL37: 7.97 | AM37: 2.38 | AN37: 13.24 | AO37: 0.82 | AP37: 1.82 | AQ37: 6.54 | AR37: 1.35 | AS37: 0 | AT37: 0 | AU37: 6.55 | AV37: 3.92 | AW37: 0.95 | AX37: 0 | AY37: 7.22 | AZ37: 4.5 | BA37: 1.82 | BB37: 0 | BC37: 2.07 | BD37: 6.18 | BE37: 0
A38: Arrears excluding Receiver of Rent and Possession Cases
A39: Performing Loans | B39: 0.9971 | C39: 0.9965 | D39: 0.9934 | E39: 0.9935 | F39: 0.9896 | G39: 0.9797 | H39: 0.9799 | I39: 0.9819 | J39: 0.9792 | K39: 0.9814 | L39: 0.9852 | M39: 0.9917 | N39: 0.9895 | O39: 0.9895 | P39: 0.9889 | Q39: 0.9899 | R39: 0.9895 | S39: 0.9931 | T39: 0.9901 | U39: 0.9895 | V39: 0.9913 | W39: 0.9938 | X39: 0.9907 | Y39: 0.9931 | Z39: 0.9974 | AA39: 0.9989 | AB39: 0.9983 | AC39: 0.9981 | AD39: 0.9980408034 | AE39: 0.9985096557 | AF39: 0.9982551704 | AG39: 0.9976121312 | AH39: 0.9971427689 | AI39: 0.9989406033 | AJ39: 0.9979817759 | AK39: 0.9981201576 | AL39: 0.9981095624 | AM39: 0.9983910984 | AN39: 0.9984731179 | AO39: 0.9982502953 | AP39: 0.9991400619 | AQ39: 0.9990805546 | AR39: 0.9986782654 | AS39: 0.9990108182 | AT39: 0.9987409428 | AU39: 0.9978692348 | AV39: 0.9969056634 | AW39: 0.9861707271 | AX39: 0.9966808528 | AY39: 0.9977082964 | AZ39: 0.9894004238 | BA39: 0.9896930975 | BB39: 0.9961369615 | BC39: 0.996486649 | BD39: 0.9957109608 | BE39: 0
A40: >1 to 2 months arrears | B40: 0.0017 | C40: 0.0027 | D40: 0.0047 | E40: 0.0048 | F40: 0.0062 | G40: 0.0108 | H40: 0.0092 | I40: 0.0107 | J40: 0.0116 | K40: 0.0099 | L40: 0.0069 | M40: 0.0036 | N40: 0.0069 | O40: 0.0066 | P40: 0.0075 | Q40: 0.0072 | R40: 0.0077 | S40: 0.0055 | T40: 0.0083 | U40: 0.0089 | V40: 0.0078 | W40: 0.0056 | X40: 0.0086 | Y40: 0.0061 | Z40: 0.0022 | AA40: 0.0006 | AB40: 0.0009 | AC40: 0.0015 | AD40: 0.001174405099 | AE40: 0.0007471702698 | AF40: 0.001370361818 | AG40: 0.002233948845 | AH40: 0.002481235391 | AI40: 0.0008433466006 | AJ40: 0.001885440139 | AK40: 0.001736596584 | AL40: 0.001821974816 | AM40: 0.001007927373 | AN40: 0.001037131821 | AO40: 0.001424443814 | AP40: 0.0008599381302 | AQ40: 0.0008284993591 | AR40: 0.0006380808295 | AS40: 0.0003373402538 | AT40: 0.00067979008 | AU40: 0.001912191563 | AV40: 0.001738778759 | AW40: 0.007567887127 | AX40: 0.001854364433 | AY40: 0.001030211624 | AZ40: 0.009048020429 | BA40: 0.007214178045 | BB40: 0.001456844686 | BC40: 0.0009217533958 | BD40: 0.002270734659 | BE40: 0
A41: >2 to 3 months arrears | B41: 0.0004 | C41: 0.0008 | D41: 0.0015 | E41: 0.0011 | F41: 0.0033 | G41: 0.0058 | H41: 0.0036 | I41: 0.0033 | J41: 0.0052 | K41: 0.004 | L41: 0.0045 | M41: 0.0015 | N41: 0.0017 | O41: 0.002 | P41: 0.0022 | Q41: 0.0017 | R41: 0.0019 | S41: 0.0007 | T41: 0.0011 | U41: 0.0011 | V41: 0.0002 | W41: 0.0004 | X41: 0.0001 | Y41: 0.0004 | Z41: 0.0002 | AA41: 0.0002 | AB41: 0.0005 | AC41: 0.0002 | AD41: 0.0003633299113 | AE41: 0.0004336908953 | AF41: 0.000322778997 | AG41: 0.0001015347017 | AH41: 0.0001935306777 | AI41: 0 | AJ41: 0 | AK41: 0 | AL41: 0 | AM41: 0.0003771881986 | AN41: 0.0001695201395 | AO41: 9.414056822e-05 | AP41: 0 | AQ41: 0 | AR41: 0.0006836537839 | AS41: 0.0006518415565 | AT41: 0.0001701763539 | AU41: 0.0001202638184 | AV41: 0.0002535078423 | AW41: 0.003097251667 | AX41: 0.001068767817 | AY41: 0.000981177017 | AZ41: 0.001446276001 | BA41: 0.002218015621 | BB41: 0.0006219113835 | BC41: 0.001430804837 | BD41: 0.0005306491903 | BE41: 0
A42: >3 months arrears | B42: 0.0008 | C42: 0 | D42: 0.0004 | E42: 0.0006 | F42: 0.0009 | G42: 0.0037 | H42: 0.0073 | I42: 0.0041 | J42: 0.004 | K42: 0.0047 | L42: 0.0034 | M42: 0.0032 | N42: 0.0019 | O42: 0.0019 | P42: 0.0014 | Q42: 0.0012 | R42: 0.0009 | S42: 0.0007 | T42: 0.0005 | U42: 0.0005 | V42: 0.0007 | W42: 0.0002 | X42: 0.0006 | Y42: 0.0004 | Z42: 0.0002 | AA42: 0.0003 | AB42: 0.0003 | AC42: 0.0002 | AD42: 0.0004214615436 | AE42: 0.0003094831118 | AF42: 5.168877035e-05 | AG42: 5.238525301e-05 | AH42: 0.0001824650273 | AI42: 0.0002160501301 | AJ42: 0.0001327839389 | AK42: 0.0001432458211 | AL42: 6.846275021e-05 | AM42: 0.0002237860169 | AN42: 0.0003202301615 | AO42: 0.0002311202746 | AP42: 0 | AQ42: 9.094603259e-05 | AR42: 0 | AS42: 0 | AT42: 0.0004090907614 | AU42: 9.830985852e-05 | AV42: 0.00110205 | AW42: 0.003164134156 | AX42: 0.0003960149494 | AY42: 0.0002803149492 | AZ42: 0.0001052797658 | BA42: 0.0008747088269 | BB42: 0.001784282414 | BC42: 0.001160792791 | BD42: 0.001487655331 | BE42: 0
A43: Total | B43: =SUM(B39:B42) -> 1 | C43: 1 | D43: 1 | E43: 1 | F43: 1 | G43: 1 | H43: 1 | I43: 1 | J43: 1 | K43: 1 | L43: 1 | M43: 1 | N43: 1 | O43: 1 | P43: 1 | Q43: 1 | R43: 1 | S43: 1 | T43: =SUM(T39:T42) -> 1 | U43: 1 | V43: 1 | W43: 1 | X43: 1 | Y43: 1 | Z43: =SUM(Z39:Z42) -> 1 | AA43: =SUM(AA39:AA42) -> 1 | AB43: =SUM(AB39:AB42) -> 1 | AC43: =SUM(AC39:AC42) -> 1 | AD43: =SUM(AD39:AD42) -> 1 | AE43: 1 | AF43: 1 | AG43: 1 | AH43: 1 | AI43: 1 | AJ43: 1 | AK43: 1 | AL43: 1 | AM43: 1 | AN43: 1 | AO43: 1 | AP43: 1 | AQ43: 1 | AR43: 1 | AS43: 1 | AT43: 1 | AU43: 1 | AV43: 1 | AW43: 1 | AX43: 1 | AY43: 1 | AZ43: 1 | BA43: 1 | BB43: 1 | BC43: 1 | BD43: 1 | BE43: =SUM(BE39:BE42) -> 0
A44: Total Value of Arrears (£000's) | B44: 72 | C44: 84 | D44: 209 | E44: 319 | F44: 464 | G44: 924 | H44: 954 | I44: 957 | J44: 940 | K44: 962 | L44: 891 | M44: 731 | N44: 646 | O44: 641 | P44: 447 | Q44: 396 | R44: 373 | S44: 354 | T44: 344 | U44: 357 | V44: 286 | W44: 278 | X44: 261 | Y44: 257 | Z44: 226 | AA44: 217 | AB44: 175 | AC44: 180 | AD44: 186.3935997 | AE44: 171.6802307 | AF44: 173.1288107 | AG44: 168.2084593 | AH44: 139.1090186 | AI44: 118.2530985 | AJ44: 118.6874308 | AK44: 116.9465917 | AL44: 138.1240029 | AM44: 103.3351598 | AN44: 64.02309008 | AO44: 59.39564921 | AP44: 44.56401805 | AQ44: 33.02820968 | AR44: 41.46849988 | AS44: 48.02232871 | AT44: 48.93033004 | AU44: 53.75106029 | AV44: 58.41970089 | AW44: 86.14983032 | AX44: 90.7786061 | AY44: 94.34526094 | AZ44: 103.5754703 | BA44: 89.88553186 | BB44: 66.54842043 | BC44: 69.62445008 | BD44: 60.37837003 | BE44: 0
A45: Total Value of Arrears as a % of the Notes Issued (£1,500,274,892) | B45: =B44/1500275 -> 4.799120161e-05 | C45: =C44/1500275 -> 5.598973522e-05 | D45: 0.0001393077936 | E45: 0.0002126276849 | F45: 0.0003092766326 | G45: 0.0006158870874 | H45: 0.0006358834214 | I45: 0.0006378830548 | J45: 0.0006265517988 | K45: 0.0006412157771 | L45: 0.00059389112 | M45: 0.0004872440053 | N45: 0.0004305877256 | O45: 0.0004272550032 | P45: 0.0002979453767 | Q45: 0.0002639516089 | R45: 0.0002486210861 | S45: 0.0002359567413 | T45: =T44/1500275 -> 0.0002292912966 | U45: 0.0002379563747 | V45: 0.0001906317175 | W45: 0.0001852993618 | X45: 0.0001739681058 | Y45: 0.000171301928 | Z45: =Z44/1500275 -> 0.0001506390495 | AA45: 0.0001446401493 | AB45: 0.0001166452817 | AC45: 0.000119978004 | AD45: 0.0001242396226 | AE45: 0.0001144325078 | AF45: 0.0001153980508 | AG45: =AG44/1500275 -> 0.0001121184178 | AH45: 9.272234667e-05 | AI45: =AI44/1500275 -> 7.882094851e-05 | AJ45: 7.911045031e-05 | AK45: =AK44/1500275 -> 7.795010359e-05 | AL45: 9.206578988e-05 | AM45: =AM44/1500275 -> 6.887747897e-05 | AN45: 4.267423645e-05 | AO45: =AO44/1500275 -> 3.958984134e-05 | AP45: 2.970389965e-05 | AQ45: =AQ44/1500275 -> 2.201477041e-05 | AR45: 2.764059914e-05 | AS45: =AS44/1500275 -> 3.200901749e-05 | AT45: 3.261424075e-05 | AU45: =AU44/1500275 -> 3.582747182e-05 | AV45: 3.893932838e-05 | AW45: =AW44/1500275 -> 5.742269272e-05 | AX45: 0 | AY45: 0 | AZ45: 0 | BA45: 0 | BB45: 0 | BC45: 0 | BD45: 0 | BE45: 0
A47: Underlying Assets - Overall | B47: 2007-08-31 | C47: 2007-11-30 | D47: 2008-02-29 | E47: 2008-05-30 | F47: 2008-08-31 | G47: 2008-11-28 | H47: 2009-02-27 | I47: 2009-05-29 | J47: 2009-08-28 | K47: 2009-11-30 | L47: 2010-02-26 | M47: 2010-05-28 | N47: 2010-08-31 | O47: 2010-11-30 | P47: 2011-02-28 | Q47: 2011-05-31 | R47: 2011-08-31 | S47: 2011-11-30 | T47: 2012-02-29 | U47: 2012-05-31 | V47: 2012-08-31 | W47: 2012-11-30 | X47: 2013-02-28 | Y47: 2013-05-31 | Z47: 2013-08-30 | AA47: 2013-11-29 | AB47: 2014-02-28 | AC47: 2014-05-30 | AD47: 2014-08-29 | AE47: 2014-11-28 | AF47: 2015-02-27 | AG47: =+AG5 -> 2015-05-29 | AH47: 2015-08-28 | AI47: 2015-11-30 | AJ47: 2016-02-29 | AK47: 2016-05-31 | AL47: 2016-08-31 | AM47: =+AM5 -> 2016-11-30 | AN47: 2017-02-28 | AO47: =+AO5 -> 2017-05-31 | AP47: 2017-08-31 | AQ47: =+AQ5 -> 2017-11-30 | AR47: 2018-02-28 | AS47: =+AS5 -> 2018-05-31 | AT47: 2018-08-31 | AU47: =+AU5 -> 2018-11-30 | AV47: 2019-02-28 | AW47: =+AW5 -> 2019-05-31 | AX47: 2019-08-30 | AY47: =+AY5 -> 2019-11-29 | AZ47: 2020-02-28 | BA47: =+BA5 -> 2020-05-29 | BB47: 2020-08-28 | BC47: =+BC5 -> 2020-11-30 | BD47: 2021-02-26 | BE47: =+BE5 -> 2021-05-28
A48: Weighted Average LTV | B48: 0.7925 | C48: 0.7923 | D48: 0.7925 | E48: 0.7933 | F48: 0.7934 | G48: 0.7942 | H48: 0.7954 | I48: 0.7958 | J48: 0.7957 | K48: 0.7956 | L48: 0.7959 | M48: 0.7957 | N48: 0.7956 | O48: 0.7954 | P48: 0.7954 | Q48: 0.7953 | R48: 0.7952 | S48: 0.7953 | T48: 0.7952 | U48: 0.795 | V48: 0.795 | W48: 0.7948 | X48: 0.7947 | Y48: 0.7944 | Z48: 0.7943 | AA48: 0.7936 | AB48: 0.7931 | AC48: 0.7925 | AD48: 0.7923006156 | AE48: 0.7916482206 | AF48: 0.7910057784 | AG48: 0.7906322859 | AH48: 0.7899956216 | AI48: 0.7894831072 | AJ48: 0.7893153164 | AK48: 0.7890850618 | AL48: 0.7887213232 | AM48: 0.7879016748 | AN48: 0.7882205571 | AO48: 0.7879409409 | AP48: 0.7874968859 | AQ48: 0.7869197822 | AR48: 0.7859680242 | AS48: 0.7855776148 | AT48: 0.7849368267 | AU48: 0.7843215364 | AV48: 0.7847575675 | AW48: 0.7847825668 | AX48: 0.7842148991 | AY48: 0.7837640579 | AZ48: 0.783298425 | BA48: 0.7831323293 | BB48: 0.7830298932 | BC48: 0.7820862486 | BD48: 0.7824146669 | BE48: 0
A49: Weighted Average Nationwide Indexed LTV | B49: 0.7518 | C49: 0.7417 | D49: 0.7445 | E49: 0.7624 | F49: 0.7877 | G49: 0.8513 | H49: 0.8797 | I49: 0.9261 | J49: 0.8943 | K49: 0.8689 | L49: 0.8553 | M49: 0.8492 | N49: 0.8287 | O49: 0.8245 | P49: 0.8439 | Q49: 0.8405 | R49: 0.8236 | S49: 0.8283 | T49: 0.8342 | U49: 0.8454 | V49: 0.8332 | W49: 0.8328 | X49: 0.8411 | Y49: 0.8396 | Z49: 0.8193 | AA49: 0.8 | AB49: 0.7829 | AC49: 0.7705 | AD49: 0.734404058 | AE49: 0.7273818642 | AF49: 0.7271637392 | AG49: 0.7282057523 | AH49: 0.7065701002 | AI49: 0.7005686217 | AJ49: 0.6976074783 | AK49: 0.6947281594 | AL49: 0.6746132977 | AM49: 0.6704577429 | AN49: 0.6712868828 | AO49: 0.6684441797 | AP49: 0.6578031035 | AQ49: 0.6545957344 | AR49: 0.6562155226 | AS49: 0.6540377458 | AT49: 0.6475427816 | AU49: 0.6434325551 | AV49: 0.6494080022 | AW49: 0.6564599817 | AX49: 0.6483185232 | AY49: 0.6477971234 | AZ49: 0.652655358 | BA49: 0.6457275249 | BB49: 0.6393005188 | BC49: 0.6257900388 | BD49: 0.6118622876 | BE49: 0
A50: Weighted Average Halifax Indexed LTV | B50: 0.748 | C50: 0.7394 | D50: 0.7573 | E50: 0.7714 | F50: 0.793 | G50: 0.8529 | H50: 0.913 | I50: 0.9478 | J50: 0.943 | K50: 0.9247 | L50: 0.9019 | M50: 0.8942 | N50: 0.8825 | O50: 0.8954 | P50: 0.9026 | Q50: 0.9161 | R50: 0.9072 | S50: 0.9025 | T50: 0.905 | U50: 0.9072 | V50: 0.9057 | W50: 0.9064 | X50: 0.9105 | Y50: 0.893 | Z50: 0.8675 | AA50: 0.8506 | AB50: 0.8434 | AC50: 0.8256 | AD50: 0.7951230932 | AE50: 0.7686295862 | AF50: 0.7765401865 | AG50: 0.7568559107 | AH50: 0.7205417316 | AI50: 0.7107599132 | AJ50: 0.71226349 | AK50: 0.6860301991 | AL50: 0.6663122319 | AM50: n/a | AN50: n/a | AO50: n/a | AP50: n/a | AQ50: n/a | AR50: n/a | AS50: n/a | AT50: n/a | AU50: n/a | AV50: n/a | AW50: n/a | AX50: n/a | AY50: n/a | AZ50: n/a | BA50: n/a | BB50: n/a | BC50: n/a | BD50: n/a | BE50: n/a
A51: % of Variable Rate Mortgages | B51: 0.0004 | C51: 0.0004 | D51: 0.0004 | E51: 0.0004 | F51: 0.0006 | G51: 0.0004 | H51: 0.0004 | I51: 0.0004 | J51: 0.0004 | K51: 0.0002 | L51: 0.0001 | M51: 0.0001 | N51: 0.0001 | O51: 0.0001 | P51: 0.0001 | Q51: 0.0001 | R51: 0.0001 | S51: 0.0001 | T51: 0.0001 | U51: 0.0001 | V51: 0.0001 | W51: 0.0001 | X51: 0.0001 | Y51: 0.0001 | Z51: 0.0001 | AA51: 0.0001 | AB51: 0.0001 | AC51: 0.0001 | AD51: 4.927263742e-05 | AE51: 4.839876862e-05 | AF51: 4.737222909e-05 | AG51: 4.639822791e-05 | AH51: 4.66660308e-05 | AI51: 4.72795665e-05 | AJ51: 0 | AK51: 0 | AL51: 0 | AM51: 0 | AN51: 0 | AO51: 0 | AP51: 0 | AQ51: 0 | AR51: 0 | AS51: 0 | AT51: 0 | AU51: 0 | AV51: 0 | AW51: 0 | AX51: 0 | AY51: 0 | AZ51: 0 | BA51: 0 | BB51: 0 | BC51: 0 | BD51: 0 | BE51: 0
A52: % of Fixed Rate Mortgages | B52: 0.7163 | C52: 0.7 | D52: 0.6888 | E52: 0.6511 | F52: 0.6432 | G52: 0.5164 | H52: 0.3106 | I52: 0.1743 | J52: 0.1395 | K52: 0.1257 | L52: 0.0914 | M52: 0.0453 | N52: 0.0274 | O52: 0.0271 | P52: 0.0189 | Q52: 0.0109 | R52: 0.0038 | S52: 0.0025 | T52: 0.0023 | U52: 0.0021 | V52: 0.0015 | W52: 0.0015 | X52: 0.0015 | Y52: 0.0006 | Z52: 0 | AA52: 0 | AB52: 0 | AC52: 0 | AD52: 0 | AE52: 0 | AF52: 0 | AG52: 0 | AH52: 0 | AI52: 0 | AJ52: 0 | AK52: 0 | AL52: 0 | AM52: 0 | AN52: 0 | AO52: 0 | AP52: 0 | AQ52: 0 | AR52: 0 | AS52: 0 | AT52: 0.00196647495 | AU52: 0.001999671619 | AV52: 0.002041389409 | AW52: 0.002085706789 | AX52: 0.002125959997 | AY52: 0.0021608072 | AZ52: 0.002201458025 | BA52: 0.002238539701 | BB52: 0.002273558941 | BC52: 0.002315172661 | BD52: 0.002396828577 | BE52: 0
A53: % of Base Rate Mortgages | B53: 0.2506 | C53: 0.2509 | D53: 0.2647 | E53: 0.2644 | F53: 0.2656 | G53: 0.274 | H53: 0.2813 | I53: 0.2962 | J53: 0.2969 | K53: 0.2978 | L53: 0.2993 | M53: 0.3002 | N53: 0.301 | O53: 0.3002 | P53: 0.3002 | Q53: 0.3001 | R53: 0.3007 | S53: 0.3012 | T53: 0.3015 | U53: 0.3022 | V53: 0.3027 | W53: 0.3028 | X53: 0.3033 | Y53: 0.3039 | Z53: 0.3044 | AA53: 0.3039 | AB53: 0.3041 | AC53: 0.3041 | AD53: 0.30487844 | AE53: 0.3053727974 | AF53: 0.3056735277 | AG53: 0.3047646748 | AH53: 0.3052323435 | AI53: 0.3052538579 | AJ53: 0.3069740004 | AK53: 0.309740372 | AL53: 0.3109821669 | AM53: 0.3109623474 | AN53: 0.31229416 | AO53: 0.3130834843 | AP53: 0.3135474102 | AQ53: 0.3139775312 | AR53: 0.3165349091 | AS53: 0.3176690308 | AT53: 0.317449284 | AU53: 0.3171965237 | AV53: 0.3185735845 | AW53: 0.3197835777 | AX53: 0.3212071363 | AY53: 0.3221176053 | AZ53: 0.3215596469 | BA53: 0.3220548415 | BB53: 0.3234347578 | BC53: 0.322548708 | BD53: 0.329677867 | BE53: 0
A54: % of Libor Linked Mortgages | B54: 0.0328 | C54: 0.0487 | D54: 0.046 | E54: 0.0841 | F54: 0.0906 | G54: 0.2092 | H54: 0.4077 | I54: 0.5291 | J54: 0.5632 | K54: 0.5762 | L54: 0.6091 | M54: 0.6545 | N54: 0.6714 | O54: 0.6726 | P54: 0.6809 | Q54: 0.6888 | R54: 0.6954 | S54: 0.6963 | T54: 0.6961 | U54: 0.6956 | V54: 0.6957 | W54: 0.6956 | X54: 0.695 | Y54: 0.6955 | Z54: 0.6955 | AA54: 0.696 | AB54: 0.6959 | AC54: 0.6959 | AD54: 0.6950722873 | AE54: 0.6945788038 | AF54: 0.6942791001 | AG54: 0.695188927 | AH54: 0.6947209905 | AI54: 0.6946988626 | AJ54: 0.6930259996 | AK54: 0.690259628 | AL54: 0.6890178331 | AM54: 0.6890376526 | AN54: 0.68770584 | AO54: 0.6869165157 | AP54: 0.6864525898 | AQ54: 0.6860224688 | AR54: 0.6834650909 | AS54: 0.6823309692 | AT54: 0.680584241 | AU54: 0.6808038046 | AV54: 0.6793850261 | AW54: 0.6781307155 | AX54: 0.6766669037 | AY54: 0.6757215875 | AZ54: 0.676238895 | BA54: 0.6757066188 | BB54: 0.6742916832 | BC54: 0.6751361194 | BD54: 0.6679253044 | BE54: 0
A55: Weighted Average Loan Size | B55: 145064.39 | C55: 145019.22 | D55: 144924.69 | E55: 144459.81 | F55: 144397.26 | G55: 143699.7 | H55: 143283.11 | I55: 143240.86 | J55: 143153.41 | K55: 143087.49 | L55: 142710.82 | M55: 142430.4 | N55: 142120.33 | O55: 141817.83 | P55: 141248.61 | Q55: 141159.03 | R55: 141058.25 | S55: 140836.84 | T55: 140740.33 | U55: 140504.67 | V55: 140197.68 | W55: 139999.02 | X55: 139915.59 | Y55: 139766.67 | Z55: 139568.08 | AA55: 139276.38 | AB55: 139036.95 | AC55: 138806.19 | AD55: 138583.2678 | AE55: 138524.0715 | AF55: 138437.2523 | AG55: 138268.4266 | AH55: 138188.6362 | AI55: 138014.3881 | AJ55: 137952.7056 | AK55: 137720.1544 | AL55: 137537.1787 | AM55: 137732.5721 | AN55: 137829.0793 | AO55: 137632.343 | AP55: 137365.5652 | AQ55: 137591.0847 | AR55: 137411.074 | AS55: 137157.0554 | AT55: 136732.7352 | AU55: 136661.8781 | AV55: 136283.624 | AW55: 135957.99 | AX55: 135832.9139 | AY55: 135868.0867 | AZ55: 135744.1907 | BA55: 135515.1722 | BB55: 135114.2279 | BC55: 134959.9533 | BD55: 133561.9626 | BE55: 0
A56: Weighted Average Interest Rate | B56: 0.05413 | C56: 0.05504 | D56: 0.05483 | E56: 0.05462 | F56: 0.055 | G56: 0.05672 | H56: 0.04566 | I56: 0.0352 | J56: 0.03069 | K56: 0.0269 | L56: 0.02617 | M56: 0.02556 | N56: 0.0255 | O56: 0.02555 | P56: 0.02545 | Q56: 0.02582 | R56: 0.02579 | S56: 0.02627 | T56: 0.02719 | U56: 0.02726 | V56: 0.02646 | W56: 0.02434 | X56: 0.02362 | Y56: 0.02353 | Z56: 0.0235 | AA56: 0.02355 | AB56: 0.02358 | AC56: 0.02359 | AD56: 0.02362263312 | AE56: 0.02375037453 | AF56: 0.02372390341 | AG56: 0.0237752923 | AH56: 0.02380534901 | AI56: 0.02388034103 | AJ56: 0.02383055312 | AK56: 0.02391015364 | AL56: 0.02390173521 | AM56: 0.021733644 | AN56: 0.021945086 | AO56: 0.02197515322 | AP56: 0.02170760672 | AQ56: 0.02163959636 | AR56: 0.0239855494 | AS56: 0.02478931339 | AT56: 0.02469988129 | AU56: 0.02675856447 | AV56: 0.02742772301 | AW56: 0.02700634437 | AX56: 0.02650325293 | AY56: 0.02636518042 | AZ56: 0.02645608555 | BA56: 0.02305221956 | BB56: 0.02036225295 | BC56: 0.01947252999 | BD56: 0.01947020199 | BE56: 0
A57: Weighted Average Maturity Date (years) | B57: 20.82 | C57: 20.58 | D57: 20.33 | E57: 20.08 | F57: 19.82 | G57: 19.57 | H57: 19.35 | I57: 19.1 | J57: 18.86 | K57: 18.61 | L57: 18.36 | M57: 18.12 | N57: 17.87 | O57: 17.63 | P57: 17.36 | Q57: 17.12 | R57: 16.88 | S57: 16.64 | T57: 16.4 | U57: 16.17 | V57: 15.92 | W57: 15.68 | X57: 15.44 | Y57: 15.19 | Z57: 14.95 | AA57: 14.7 | AB57: 14.47 | AC57: 14.23 | AD57: 13.9974754 | AE57: 13.76073056 | AF57: 13.51742641 | AG57: 13.28330301 | AH57: 13.05020106 | AI57: 12.82119568 | AJ57: 12.5992615 | AK57: 12.37777722 | AL57: 12.14882862 | AM57: 11.97745952 | AN57: 11.8851341 | AO57: 11.69871069 | AP57: 11.48387282 | AQ57: 11.26874732 | AR57: 11.03868093 | AS57: 10.80209233 | AT57: 10.6053695 | AU57: 10.38610143 | AV57: 10.1771596 | AW57: 9.949759045 | AX57: 9.70966337 | AY57: 9.486653115 | AZ57: 9.267651699 | BA57: 9.040700248 | BB57: 8.82004403 | BC57: 8.609646583 | BD57: 8.354697007 | BE57: 0
A58: Weighted Average Seasoning (months) | B58: 7.3 | C58: 10.29 | D58: 13.26 | E58: 16.25 | F58: 19.27 | G58: 22.27 | H58: 25.22 | I58: 28.25 | J58: 31.27 | K58: 34.26 | L58: 37.21 | M58: 40.23 | N58: 43.26 | O58: 46.25 | P58: 49.21 | Q58: 52.23 | R58: 55.26 | S58: 58.25 | T58: 61.24 | U58: 64.27 | V58: 67.3 | W58: 70.29 | X58: 73.25 | Y58: 76.25 | Z58: 79.28 | AA58: 82.27 | AB58: 85.23 | AC58: 88.26 | AD58: 91.28606008 | AE58: 94.27138501 | AF58: 97.22590969 | AG58: 100.2541916 | AH58: 103.2833927 | AI58: 106.2804513 | AJ58: 109.2763035 | AK58: 112.2967214 | AL58: 115.249512 | AM58: 118.248735 | AN58: 121.2087884 | AO58: 124.2085723 | AP58: 127.2260639 | AQ58: 130.2127012 | AR58: 133.1685551 | AS58: 136.1969164 | AT58: 139.2197083 | AU58: 142.2161186 | AV58: 145.1823642 | AW58: 148.1977773 | AX58: 151.2123362 | AY58: 154.2011327 | AZ58: 157.1883797 | BA58: 160.2216396 | BB58: 163.2531569 | BC58: 166.2470188 | BD58: 169.1572056 | BE58: 0
A59: % of Interest Only Mortgages | B59: 0.955 | C59: 0.9552 | D59: 0.9549 | E59: 0.9554 | F59: 0.9566 | G59: 0.9578 | H59: 0.9587 | I59: 0.9588 | J59: 0.959 | K59: 0.9592 | L59: 0.9611 | M59: 0.9619 | N59: 0.9627 | O59: 0.9633 | P59: 0.9632 | Q59: 0.9634 | R59: 0.9634 | S59: 0.9644 | T59: 0.955 | U59: 0.9646 | V59: 0.9656 | W59: 0.9662 | X59: 0.9672 | Y59: 0.9678 | Z59: 0.9686 | AA59: 0.9686 | AB59: 0.969 | AC59: 0.9693 | AD59: 0.9695917334 | AE59: 0.9702315094 | AF59: 0.9706016773 | AG59: 0.9707427795 | AH59: 0.9710890852 | AI59: 0.9713359495 | AJ59: 0.9718609447 | AK59: 0.9726333748 | AL59: 0.9734944163 | AM59: 0.9737497697 | AN59: 0.9743078007 | AO59: 0.9746624954 | AP59: 0.9751216118 | AQ59: 0.9755545991 | AR59: 0.9764987412 | AS59: 0.9771226982 | AT59: 0.9780646503 | AU59: 0.9785341135 | AV59: 0.9791873132 | AW59: 0.9794122146 | AX59: 0.9798455445 | AY59: 0.980390983 | AZ59: 0.9808225804 | BA59: 0.9816617078 | BB59: 0.9817530882 | BC59: 0.9819586449 | BD59: 0.9822860672 | BE59: 0
A60: % of Repayment Mortgages | B60: 0.045 | C60: 0.0448 | D60: 0.0451 | E60: 0.0446 | F60: 0.0434 | G60: 0.0422 | H60: 0.0413 | I60: 0.0412 | J60: 0.041 | K60: 0.0408 | L60: 0.0389 | M60: 0.0381 | N60: 0.0373 | O60: 0.0367 | P60: 0.0368 | Q60: 0.0366 | R60: 0.0366 | S60: 0.0356 | T60: 0.035 | U60: 0.0354 | V60: 0.0344 | W60: 0.0338 | X60: 0.0328 | Y60: 0.0322 | Z60: 0.0314 | AA60: 0.0314 | AB60: 0.031 | AC60: 0.0307 | AD60: 0.03040826664 | AE60: 0.02976849065 | AF60: 0.02939832275 | AG60: 0.02925722045 | AH60: 0.0289109148 | AI60: 0.02866405054 | AJ60: 0.02813905532 | AK60: 0.02736662516 | AL60: 0.02650558365 | AM60: 0.02625023033 | AN60: 0.02569219929 | AO60: 0.02533750458 | AP60: 0.02487838821 | AQ60: 0.02444540093 | AR60: 0.02350125884 | AS60: 0.02287730184 | AT60: 0.02193534974 | AU60: 0.02146588651 | AV60: 0.0208126868 | AW60: 0.02058778537 | AX60: 0.02015445555 | AY60: 0.01960901702 | AZ60: 0.01917741963 | BA60: 0.01833829224 | BB60: 0.01824691183 | BC60: 0.01804135506 | BD60: 0.01771393281 | BE60: 0
A61: % of Mortgages in London | B61: 0.234 | C61: 0.232 | D61: 0.2307 | E61: 0.2246 | F61: 0.2237 | G61: 0.2177 | H61: 0.2121 | I61: 0.2113 | J61: 0.2121 | K61: 0.2117 | L61: 0.2105 | M61: 0.2103 | N61: 0.2103 | O61: 0.208 | P61: 0.2072 | Q61: 0.2069 | R61: 0.2066 | S61: 0.2055 | T61: 0.2046 | U61: 0.2042 | V61: 0.203 | W61: 0.2026 | X61: 0.2024 | Y61: 0.2016 | Z61: 0.2012 | AA61: 0.2006 | AB61: 0.1997 | AC61: 0.1987 | AD61: 0.1966521853 | AE61: 0.1951468868 | AF61: 0.1945545476 | AG61: 0.194142328 | AH61: 0.1940766641 | AI61: 0.1930779917 | AJ61: 0.1936423157 | AK61: 0.1916847626 | AL61: 0.1914070071 | AM61: 0.1919870103 | AN61: 0.1918359425 | AO61: 0.1909720693 | AP61: 0.1906439004 | AQ61: 0.1913369266 | AR61: 0.1902604792 | AS61: 0.1886855574 | AT61: 0.1875514891 | AU61: 0.1875054685 | AV61: 0.1860085922 | AW61: 0.1850248168 | AX61: 0.1829475157 | AY61: 0.1826871989 | AZ61: 0.1838833641 | BA61: 0.1829460236 | BB61: 0.1807519853 | BC61: 0.1783456288 | BD61: 0.1638080157 | BE61: 0
A62: % of Mortgages in the South East | B62: 0.2884 | C62: 0.2889 | D62: 0.2882 | E62: 0.2882 | F62: 0.287 | G62: 0.2858 | H62: 0.2839 | I62: 0.2829 | J62: 0.2832 | K62: 0.2823 | L62: 0.2822 | M62: 0.281 | N62: 0.2803 | O62: 0.2808 | P62: 0.2808 | Q62: 0.2801 | R62: 0.2798 | S62: 0.2805 | T62: 0.2813 | U62: 0.2807 | V62: 0.2803 | W62: 0.28 | X62: 0.2793 | Y62: 0.2792 | Z62: 0.2789 | AA62: 0.2788 | AB62: 0.2791 | AC62: 0.2787 | AD62: 0.2779008108 | AE62: 0.2781855445 | AF62: 0.277864939 | AG62: 0.2767535645 | AH62: 0.2744067638 | AI62: 0.2735199463 | AJ62: 0.2720044715 | AK62: 0.2702229557 | AL62: 0.2682471986 | AM62: 0.2666123092 | AN62: 0.2655930906 | AO62: 0.2637115742 | AP62: 0.2622485131 | AQ62: 0.2616296154 | AR62: 0.259680969 | AS62: 0.258057171 | AT62: 0.2551110604 | AU62: 0.2532220788 | AV62: 0.2519447899 | AW62: 0.2497894414 | AX62: 0.2487542712 | AY62: 0.248444069 | AZ62: 0.2461210444 | BA62: 0.2443344925 | BB62: 0.2426223886 | BC62: 0.2419034869 | BD62: 0.2467887615 | BE62: 0
A63: % of Owner Occupied Mortgages | B63: 0 | C63: 0 | D63: 0 | E63: 0 | F63: 0 | G63: 0 | H63: 0 | I63: 0 | J63: 0 | K63: 0 | L63: 0 | M63: 0 | N63: 0 | O63: 0 | P63: 0 | Q63: 0 | R63: 0 | S63: 0 | T63: 0 | U63: 0 | V63: 0 | W63: 0 | X63: 0 | Y63: 0 | Z63: 0 | AA63: 0 | AB63: 0 | AC63: 0 | AD63: 0 | AE63: 0 | AF63: 0 | AG63: 0 | AH63: 0 | AI63: 0 | AJ63: 0 | AK63: 0 | AL63: 0 | AM63: 0 | AN63: 0 | AO63: 0 | AP63: 0 | AQ63: 0 | AR63: 0 | AS63: 0 | AT63: 0 | AU63: 0 | AV63: 0 | AW63: 0 | AX63: 0 | AY63: 0 | AZ63: 0 | BA63: 0 | BB63: 0 | BC63: 0 | BD63: 0 | BE63: 0
A64: % of Investment Home Loans - Professional Landlords | B64: 0.4895 | C64: 0.4906 | D64: 0.4915 | E64: 0.4954 | F64: 0.4999 | G64: 0.5114 | H64: 0.5192 | I64: 0.5209 | J64: 0.5213 | K64: 0.5216 | L64: 0.5229 | M64: 0.5239 | N64: 0.5245 | O64: 0.525 | P64: 0.5244 | Q64: 0.5254 | R64: 0.5264 | S64: 0.5272 | T64: 0.5286 | U64: 0.5295 | V64: 0.5308 | W64: 0.5314 | X64: 0.5329 | Y64: 0.5341 | Z64: 0.5352 | AA64: 0.536 | AB64: 0.5356 | AC64: 0.5377 | AD64: 0.5398538711 | AE64: 0.5417734929 | AF64: 0.543583078 | AG64: 0.5445792854 | AH64: 0.5469057674 | AI64: 0.5481054608 | AJ64: 0.5499175117 | AK64: 0.5513156357 | AL64: 0.5540168345 | AM64: 0.5573970849 | AN64: 0.559808728 | AO64: 0.5602216839 | AP64: 0.5621478097 | AQ64: 0.564204245 | AR64: 0.5661307251 | AS64: 0.5690323104 | AT64: 0.5721393138 | AU64: 0.574098082 | AV64: 0.5746143855 | AW64: 0.5788730508 | AX64: 0.58135138 | AY64: 0.5824415568 | AZ64: 0.5856601611 | BA64: 0.5865464109 | BB64: 0.5889815335 | BC64: 0.5911288025 | BD64: 0.5880098456 | BE64: 0
A65: % of Investment Home Loans - Emerging Professional Landlords | B65: 0.5105 | C65: 0.5094 | D65: 0.5085 | E65: 0.5046 | F65: 0.5001 | G65: 0.4886 | H65: 0.4808 | I65: 0.4791 | J65: 0.4787 | K65: 0.4784 | L65: 0.4771 | M65: 0.4761 | N65: 0.4755 | O65: 0.475 | P65: 0.4756 | Q65: 0.4746 | R65: 0.4736 | S65: 0.4728 | T65: 0.4714 | U65: 0.4705 | V65: 0.4692 | W65: 0.4686 | X65: 0.4671 | Y65: 0.4659 | Z65: 0.4648 | AA65: 0.464 | AB65: 0.4644 | AC65: 0.4623 | AD65: 0.4601461289 | AE65: 0.4582265071 | AF65: 0.456416922 | AG65: 0.4554207146 | AH65: 0.4530942326 | AI65: 0.4518945392 | AJ65: 0.4500824883 | AK65: 0.4486843643 | AL65: 0.4459831655 | AM65: 0.4426029151 | AN65: 0.440191272 | AO65: 0.4397783161 | AP65: 0.4378521903 | AQ65: 0.435795755 | AR65: 0.4338692749 | AS65: 0.4309676896 | AT65: 0.4278606862 | AU65: 0.425901918 | AV65: 0.4253856145 | AW65: 0.4211269492 | AX65: 0.41864862 | AY65: 0.4175584432 | AZ65: 0.4143398389 | BA65: 0.4134535891 | BB65: 0.4110184665 | BC65: 0.4088711975 | BD65: 0.4119901544 | BE65: 0
A66: Weighted Average Interest Coverage Ratio (calculated at the origination date) | B66: 1.46 | C66: 1.46 | D66: 1.46 | E66: 1.46 | F66: 1.46 | G66: 1.46 | H66: 1.46 | I66: 1.46 | J66: 1.46 | K66: 1.46 | L66: 1.46 | M66: 1.46 | N66: 1.46 | O66: 1.46 | P66: 1.46 | Q66: 1.46 | R66: 1.46 | S66: 1.46 | T66: 1.46 | U66: 1.46 | V66: 1.46 | W66: 1.46 | X66: 1.46 | Y66: 1.46 | Z66: 1.46 | AA66: 1.46 | AB66: 1.46 | AC66: 1.46 | AD66: 1.463354414 | AE66: 1.464067233 | AF66: 1.464207329 | AG66: 1.463761551 | AH66: 1.464246844 | AI66: 1.465320481 | AJ66: 1.466836409 | AK66: 1.468777363 | AL66: 1.468880434 | AM66: 1.471002767 | AN66: 1.470501275 | AO66: 1.469425676 | AP66: 1.470665178 | AQ66: 1.470319649 | AR66: 1.471905804 | AS66: 1.47214989 | AT66: 1.473115001 | AU66: 1.473214299 | AV66: 1.474614516 | AW66: 1.472241845 | AX66: 1.471287766 | AY66: 1.470477532 | AZ66: 1.470974359 | BA66: 1.47230571 | BB66: 1.470740657 | BC66: 1.471518598 | BD66: 1.469860066 | BE66: 0
A67: % of Paragon Originated Assets | B67: 0.396 | C67: 0.4001 | D67: 0.4016 | E67: 0.4141 | F67: 0.4207 | G67: 0.4371 | H67: 0.4491 | I67: 0.4507 | J67: 0.4505 | K67: 0.4517 | L67: 0.453 | M67: 0.4537 | N67: 0.4547 | O67: 0.4549 | P67: 0.4542 | Q67: 0.4545 | R67: 0.4549 | S67: 0.4557 | T67: 0.455 | U67: 0.4559 | V67: 0.4579 | W67: 0.4581 | X67: 0.459 | Y67: 0.4593 | Z67: 0.4605 | AA67: 0.4619 | AB67: 0.4622 | AC67: 0.4641 | AD67: 0.4665978655 | AE67: 0.4682013169 | AF67: 0.4701830841 | AG67: 0.4707754869 | AH67: 0.4723934717 | AI67: 0.473242388 | AJ67: 0.4745843039 | AK67: 0.4762140848 | AL67: 0.479190294 | AM67: 0.4830372902 | AN67: 0.4841511545 | AO67: 0.4838439735 | AP67: 0.4863330462 | AQ67: 0.4885211887 | AR67: 0.4911891734 | AS67: 0.4948821705 | AT67: 0.4974758802 | AU67: 0.499605394 | AV67: 0.5026454593 | AW67: 0.5075489048 | AX67: 0.5104563091 | AY67: 0.5099759158 | AZ67: 0.5117281744 | BA67: 0.5128584237 | BB67: 0.5138565703 | BC67: 0.5161245978 | BD67: 0.5108117983 | BE67: 0
A68: % of Mortgage Trust Originated Assets | B68: 0.604 | C68: 0.5999 | D68: 0.5984 | E68: 0.5859 | F68: 0.5793 | G68: 0.5629 | H68: 0.5509 | I68: 0.5493 | J68: 0.5495 | K68: 0.5483 | L68: 0.547 | M68: 0.5463 | N68: 0.5453 | O68: 0.5451 | P68: 0.5458 | Q68: 0.5455 | R68: 0.5451 | S68: 0.5443 | T68: 0.545 | U68: 0.5441 | V68: 0.5421 | W68: 0.5419 | X68: 0.541 | Y68: 0.5407 | Z68: 0.5395 | AA68: 0.5381 | AB68: 0.5378 | AC68: 0.5359 | AD68: 0.5334021345 | AE68: 0.5317986831 | AF68: 0.5298169159 | AG68: 0.5292245131 | AH68: 0.5276065283 | AI68: 0.526757612 | AJ68: 0.5254156961 | AK68: 0.5237859152 | AL68: 0.520809706 | AM68: 0.5169627098 | AN68: 0.5158488455 | AO68: 0.5161560265 | AP68: 0.5136669538 | AQ68: 0.5114788113 | AR68: 0.5088108266 | AS68: 0.5051178295 | AT68: 0.5025241198 | AU68: 0.500394606 | AV68: 0.4973545407 | AW68: 0.4924510952 | AX68: 0.4895436909 | AY68: 0.4900240842 | AZ68: 0.4882718256 | BA68: 0.4871415763 | BB68: 0.4861434297 | BC68: 0.4838754022 | BD68: 0.4891882017 | BE68: 0
A70: Underlying Assets - Paragon Originated Assets | B70: 2007-08-31 | C70: 2007-11-30 | D70: 2008-02-29 | E70: 2008-05-30 | F70: 2008-08-31 | G70: 2008-11-28 | H70: 2009-02-27 | I70: 2009-05-29 | J70: 2009-08-28 | K70: 2009-11-30 | L70: 2010-02-26 | M70: 2010-05-28 | N70: 2010-08-31 | O70: 2010-11-30 | P70: 2011-02-28 | Q70: 2011-05-31 | R70: 2011-08-31 | S70: 2011-11-30 | T70: 2012-02-29 | U70: 2012-05-31 | V70: 2012-08-31 | W70: 2012-11-30 | X70: 2013-02-28 | Y70: 2013-05-31 | Z70: 2013-08-30 | AA70: 2013-11-29 | AB70: 2014-02-28 | AC70: 2014-05-30 | AD70: 2014-08-29 | AE70: 2014-11-28 | AF70: 2015-02-27 | AG70: =+AG47 -> 2015-05-29 | AH70: 2015-08-28 | AI70: 2015-11-30 | AJ70: 2016-02-29 | AK70: 2016-05-31 | AL70: 2016-08-31 | AM70: =+AM47 -> 2016-11-30 | AN70: 2017-02-28 | AO70: =+AO47 -> 2017-05-31 | AP70: 2017-08-31 | AQ70: =+AQ47 -> 2017-11-30 | AR70: 2018-02-28 | AS70: =+AS47 -> 2018-05-31 | AT70: 2018-08-31 | AU70: =+AU47 -> 2018-11-30 | AV70: 2019-02-28 | AW70: =+AW47 -> 2019-05-31 | AX70: 2019-08-30 | AY70: =+AY47 -> 2019-11-29 | AZ70: 2020-02-28 | BA70: =+BA47 -> 2020-05-29 | BB70: 2020-08-28 | BC70: =+BC47 -> 2020-11-30 | BD70: 2021-02-26 | BE70: =+BE47 -> 2021-05-28
A71: Weighted Average LTV | B71: 0.8012 | C71: 0.8009 | D71: 0.801 | E71: 0.8013 | F71: 0.8007 | G71: 0.8005 | H71: 0.8006 | I71: 0.8007 | J71: 0.8005 | K71: 0.8004 | L71: 0.8001 | M71: 0.7998 | N71: 0.7995 | O71: 0.7996 | P71: 0.7994 | Q71: 0.7991 | R71: 0.7988 | S71: 0.799 | T71: 0.799 | U71: 0.7988 | V71: 0.7986 | W71: 0.7985 | X71: 0.7984 | Y71: 0.7981 | Z71: 0.7982 | AA71: 0.7973 | AB71: 0.7967 | AC71: 0.7962 | AD71: 0.7961498248 | AE71: 0.7956785904 | AF71: 0.7947250232 | AG71: 0.7946772765 | AH71: 0.79429063 | AI71: 0.7938065399 | AJ71: 0.7933719881 | AK71: 0.7929203868 | AL71: 0.7927410124 | AM71: 0.791520131 | AN71: 0.7913645021 | AO71: 0.7913070774 | AP71: 0.7911204846 | AQ71: 0.7899681213 | AR71: 0.7879665132 | AS71: 0.7877887176 | AT71: 0.7856427114 | AU71: 0.7852750782 | AV71: 0.7857531995 | AW71: 0.7858101874 | AX71: 0.7850594698 | AY71: 0.785098965 | AZ71: 0.7848468394 | BA71: 0.7844242369 | BB71: 0.7840581307 | BC71: 0.7826314884 | BD71: 0.7829651811 | BE71: 0
A72: Weighted Average Nationwide Indexed LTV | B72: 0.7652 | C72: 0.7566 | D72: 0.7602 | E72: 0.777 | F72: 0.8012 | G72: 0.8588 | H72: 0.8896 | I72: 0.9371 | J72: 0.9091 | K72: 0.8939 | L72: 0.8779 | M72: 0.8743 | N72: 0.8501 | O72: 0.8509 | P72: 0.865 | Q72: 0.8614 | R72: 0.8433 | S72: 0.8502 | T72: 0.8579 | U72: 0.8689 | V72: 0.8573 | W72: 0.8581 | X72: 0.8672 | Y72: 0.8664 | Z72: 0.8456 | AA72: 0.8266 | AB72: 0.8094 | AC72: 0.8007 | AD72: 0.7664609953 | AE72: 0.7594089181 | AF72: 0.7593691979 | AG72: 0.7608909947 | AH72: 0.7387061352 | AI72: 0.7332723064 | AJ72: 0.7307521458 | AK72: 0.7286016042 | AL72: 0.7087218042 | AM72: 0.7042750233 | AN72: 0.7044092704 | AO72: 0.7023574097 | AP72: 0.6911149836 | AQ72: 0.687574776 | AR72: 0.6898548061 | AS72: 0.6872358615 | AT72: 0.6791152473 | AU72: 0.674192594 | AV72: 0.6807913423 | AW72: 0.6865855616 | AX72: 0.6784991925 | AY72: 0.6795542305 | AZ72: 0.6845957832 | BA72: 0.6763713925 | BB72: 0.6704040077 | BC72: 0.6569258544 | BD72: 0.641064071 | BE72: 0
A73: Weighted Average Halifax Indexed LTV | B73: 0.7625 | C73: 0.7559 | D73: 0.7706 | E73: 0.7833 | F73: 0.8051 | G73: 0.8645 | H73: 0.9238 | I73: 0.9558 | J73: 0.9551 | K73: 0.9479 | L73: 0.9242 | M73: 0.9177 | N73: 0.906 | O73: 0.9195 | P73: 0.9212 | Q73: 0.9376 | R73: 0.9269 | S73: 0.9218 | T73: 0.9306 | U73: 0.9305 | V73: 0.929 | W73: 0.9321 | X73: 0.9376 | Y73: 0.9189 | Z73: 0.8928 | AA73: 0.8754 | AB73: 0.8676 | AC73: 0.8522 | AD73: 0.8231981079 | AE73: 0.7988819315 | AF73: 0.8063914883 | AG73: 0.7841634404 | AH73: 0.7461868734 | AI73: 0.7375132773 | AJ73: 0.7408803216 | AK73: 0.7157394509 | AL73: 0.6936859506 | AM73: n/a | AN73: n/a | AO73: n/a | AP73: n/a | AQ73: n/a | AR73: n/a | AS73: n/a | AT73: n/a | AU73: n/a | AV73: n/a | AW73: n/a | AX73: n/a | AY73: n/a | AZ73: n/a | BA73: n/a | BB73: n/a | BC73: n/a | BD73: n/a | BE73: n/a
A74: % of Variable Rate Mortgages | B74: 0.0004 | C74: 0.0005 | D74: 0.0005 | E74: 0.0004 | F74: 0.0012 | G74: 0.0007 | H74: 0.0007 | I74: 0.0006 | J74: 0.0006 | K74: 0.0003 | L74: 0 | M74: 0 | N74: 0 | O74: 0 | P74: 0 | Q74: 0 | R74: 0 | S74: 0 | T74: 0 | U74: 0 | V74: 0 | W74: 0 | X74: 0 | Y74: 0 | Z74: 0 | AA74: 0 | AB74: 0 | AC74: 0 | AD74: 0 | AE74: 0 | AF74: 0 | AG74: 0 | AH74: 0 | AI74: 0 | AJ74: 0 | AK74: 0 | AL74: 0 | AM74: 0 | AN74: 0 | AO74: 0 | AP74: 0 | AQ74: 0 | AR74: 0 | AS74: 0 | AT74: 0 | AU74: 0 | AV74: 0 | AW74: 0 | AX74: 0 | AY74: 0 | AZ74: 0 | BA74: 0 | BB74: 0 | BC74: 0 | BD74: 0 | BE74: 0
A75: % of Fixed Rate Mortgages | B75: 0.5252 | C75: 0.5339 | D75: 0.5011 | E75: 0.5153 | F75: 0.5102 | G75: 0.4476 | H75: 0.3649 | I75: 0.222 | J75: 0.1722 | K75: 0.1437 | L75: 0.0926 | M75: 0.0195 | N75: 0.0103 | O75: 0.0099 | P75: 0.0091 | Q75: 0.0053 | R75: 0.0023 | S75: 0.0023 | T75: 0.0024 | U75: 0.0018 | V75: 0.0018 | W75: 0.0018 | X75: 0.0018 | Y75: 0 | Z75: 0 | AA75: 0 | AB75: 0 | AC75: 0 | AD75: 0 | AE75: 0 | AF75: 0 | AG75: 0 | AH75: 0 | AI75: 0 | AJ75: 0 | AK75: 0 | AL75: 0 | AM75: 0 | AN75: 0 | AO75: 0 | AP75: 0 | AQ75: 0 | AR75: 0 | AS75: 0 | AT75: 0.003952905112 | AU75: 0.00400250206 | AV75: 0.004061290859 | AW75: 0.004109371075 | AX75: 0.004164822647 | AY75: 0.004237076955 | AZ75: 0.00430200668 | BA75: 0.004364829742 | BB75: 0.004424501062 | BC75: 0.004489460843 | BD75: 0.004692195023 | BE75: 0
A76: % of Base Rate Mortgages | B76: 0.41 | C76: 0.4113 | D76: 0.4457 | E76: 0.4268 | F76: 0.4206 | G76: 0.4189 | H76: 0.4192 | I76: 0.4449 | J76: 0.4464 | K76: 0.4468 | L76: 0.4479 | M76: 0.4487 | N76: 0.45 | O76: 0.448 | P76: 0.4468 | Q76: 0.4467 | R76: 0.447 | S76: 0.4472 | T76: 0.4478 | U76: 0.4483 | V76: 0.4488 | W76: 0.449 | X76: 0.4492 | Y76: 0.4496 | Z76: 0.4507 | AA76: 0.4504 | AB76: 0.4504 | AC76: 0.4497 | AD76: 0.4500338206 | AE76: 0.4498758726 | AF76: 0.4492053701 | AG76: 0.4468779352 | AH76: 0.4471159036 | AI76: 0.4458911808 | AJ76: 0.4477439519 | AK76: 0.4503339035 | AL76: 0.4501054844 | AM76: 0.4478734716 | AN76: 0.4475583963 | AO76: 0.4486468924 | AP76: 0.4477440336 | AQ76: 0.4448022313 | AR76: 0.4472710969 | AS76: 0.4460332794 | AT76: 0.4449143384 | AU76: 0.4432996791 | AV76: 0.4435375469 | AW76: 0.4405361064 | AX76: 0.4409618327 | AY76: 0.4425045353 | AZ76: 0.4406539076 | BA76: 0.4397224932 | BB76: 0.4412177381 | BC76: 0.4392426865 | BD76: 0.4539575797 | BE76: 0
A77: % of Libor Linked Mortgages | B77: 0.0643 | C77: 0.0543 | D77: 0.0526 | E77: 0.0575 | F77: 0.0679 | G77: 0.1328 | H77: 0.2152 | I77: 0.3325 | J77: 0.3808 | K77: 0.4092 | L77: 0.4595 | M77: 0.5319 | N77: 0.5397 | O77: 0.5421 | P77: 0.5441 | Q77: 0.548 | R77: 0.5506 | S77: 0.5505 | T77: 0.5499 | U77: 0.5499 | V77: 0.5494 | W77: 0.5492 | X77: 0.549 | Y77: 0.5504 | Z77: 0.5493 | AA77: 0.5496 | AB77: 0.5496 | AC77: 0.5503 | AD77: 0.5499661794 | AE77: 0.5501241274 | AF77: 0.5507946299 | AG77: 0.5531220648 | AH77: 0.5528840964 | AI77: 0.5541088192 | AJ77: 0.5522560481 | AK77: 0.5496660965 | AL77: 0.5498945156 | AM77: 0.5521265284 | AN77: 0.5524416037 | AO77: 0.5513531076 | AP77: 0.5522559664 | AQ77: 0.5551977687 | AR77: 0.5527289031 | AS77: 0.5539667206 | AT77: 0.5511327565 | AU77: 0.5526978189 | AV77: 0.5524011623 | AW77: 0.5553545225 | AX77: 0.5548733447 | AY77: 0.5532583877 | AZ77: 0.5550440857 | BA77: 0.5559126771 | BB77: 0.5543577608 | BC77: 0.5562678527 | BD77: 0.5413502253 | BE77: 0
A78: Weighted Average Loan Size | B78: 141024.81 | C78: 141625.26 | D78: 141336.57 | E78: 141816.66 | F78: 142076.29 | G78: 142228.64 | H78: 142832.24 | I78: 142988.16 | J78: 142768.51 | K78: 142790.04 | L78: 142554.49 | M78: 142122.92 | N78: 141879.72 | O78: 141318.47 | P78: 140605.54 | Q78: 140625.57 | R78: 140443.42 | S78: 140344.89 | T78: 140239.2 | U78: 140069.04 | V78: 139963.64 | W78: 139800.36 | X78: 139764.47 | Y78: 139609.59 | Z78: 139510.27 | AA78: 139259.98 | AB78: 139075.57 | AC78: 139016.36 | AD78: 138901.563 | AE78: 138955.7059 | AF78: 139056.8812 | AG78: 138767.6071 | AH78: 139040.1534 | AI78: 138911.6144 | AJ78: 138880.9228 | AK78: 138850.1382 | AL78: 138907.1334 | AM78: 139629.5105 | AN78: 139928.9507 | AO78: 139693.5604 | AP78: 139690.0108 | AQ78: 140221.0591 | AR78: 139954.1782 | AS78: 139744.5533 | AT78: 139263.797 | AU78: 139355.3746 | AV78: 139275.2186 | AW78: 139315.8978 | AX78: 139350.8486 | AY78: 139446.6171 | AZ78: 139552.183 | BA78: 139580.9024 | BB78: 139071.7226 | BC78: 139095.559 | BD78: 136804.9647 | BE78: 0
A79: Weighted Average Interest Rate | B79: 0.0566 | C79: 0.05658 | D79: 0.05616 | E79: 0.05389 | F79: 0.05407 | G79: 0.05389 | H79: 0.03953 | I79: 0.03327 | J79: 0.03044 | K79: 0.02725 | L79: 0.02621 | M79: 0.02453 | N79: 0.02477 | O79: 0.02477 | P79: 0.02475 | Q79: 0.02523 | R79: 0.02517 | S79: 0.02573 | T79: 0.02628 | U79: 0.02627 | V79: 0.02518 | W79: 0.02353 | X79: 0.02353 | Y79: 0.02346 | Z79: 0.02347 | AA79: 0.02347 | AB79: 0.02346 | AC79: 0.02349 | AD79: 0.02348138009 | AE79: 0.02348605626 | AF79: 0.02349533994 | AG79: 0.02351622745 | AH79: 0.02352848517 | AI79: 0.0235221917 | AJ79: 0.02353338412 | AK79: 0.02356534481 | AL79: 0.02355540204 | AM79: 0.02132306888 | AN79: 0.02153954658 | AO79: 0.02165823211 | AP79: 0.02163405368 | AQ79: 0.0216354146 | AR79: 0.02387610676 | AS79: 0.02500631162 | AT79: 0.02452648956 | AU79: 0.02671331848 | AV79: 0.02727614162 | AW79: 0.02676898417 | AX79: 0.02620586916 | AY79: 0.02616562118 | AZ79: 0.02615544013 | BA79: 0.02217394412 | BB79: 0.01990899037 | BC79: 0.01933816019 | BD79: 0.01947201577 | BE79: 0
A80: Weighted Average Maturity Date (years) | B80: 20.86 | C80: 20.61 | D80: 20.38 | E80: 20.12 | F80: 19.86 | G80: 19.62 | H80: 19.38 | I80: 19.13 | J80: 18.9 | K80: 18.64 | L80: 18.38 | M80: 18.15 | N80: 17.9 | O80: 17.66 | P80: 17.38 | Q80: 17.13 | R80: 16.88 | S80: 16.64 | T80: 16.42 | U80: 16.19 | V80: 15.95 | W80: 15.71 | X80: 15.46 | Y80: 15.21 | Z80: 14.97 | AA80: 14.72 | AB80: 14.5 | AC80: 14.27 | AD80: 14.03067356 | AE80: 13.79865509 | AF80: 13.55749203 | AG80: 13.3063739 | AH80: 13.0770842 | AI80: 12.86267666 | AJ80: 12.66080418 | AK80: 12.43881843 | AL80: 12.22437319 | AM80: 12.04500842 | AN80: 11.95002491 | AO80: 11.76986225 | AP80: 11.53323751 | AQ80: 11.330938 | AR80: 11.08927301 | AS80: 10.84411346 | AT80: 10.67450959 | AU80: 10.45453618 | AV80: 10.25995009 | AW80: 10.03273728 | AX80: 9.784521987 | AY80: 9.579403349 | AZ80: 9.351962914 | BA80: 9.111656282 | BB80: 8.904831225 | BC80: 8.675456812 | BD80: 8.381107497 | BE80: 0
A81: Weighted Average Seasoning (months) | B81: 7.31 | C81: 10.29 | D81: 13.29 | E81: 16.33 | F81: 19.36 | G81: 22.35 | H81: 25.3 | I81: 28.32 | J81: 31.35 | K81: 34.34 | L81: 37.29 | M81: 40.31 | N81: 43.34 | O81: 46.33 | P81: 49.28 | Q81: 52.31 | R81: 55.33 | S81: 58.32 | T81: 61.31 | U81: 64.34 | V81: 67.37 | W81: 70.36 | X81: 73.32 | Y81: 76.35 | Z81: 79.38 | AA81: 82.37 | AB81: 85.33 | AC81: 88.36 | AD81: 91.38710651 | AE81: 94.36971937 | AF81: 97.33064965 | AG81: 100.3629244 | AH81: 103.3931384 | AI81: 106.3937579 | AJ81: 109.3954046 | AK81: 112.4009578 | AL81: 115.3551585 | AM81: 118.3639814 | AN81: 121.3269735 | AO81: 124.3072162 | AP81: 127.3221455 | AQ81: 130.3030342 | AR81: 133.2559637 | AS81: 136.2854279 | AT81: 139.3086595 | AU81: 142.3093108 | AV81: 145.2790839 | AW81: 148.2840601 | AX81: 151.2972801 | AY81: 154.2885948 | AZ81: 157.2677258 | BA81: 160.3026914 | BB81: 163.3380933 | BC81: 166.3332803 | BD81: 169.2033229 | BE81: 0
A82: % of Interest Only Mortgages | B82: 0.9631 | C82: 0.9633 | D82: 0.9628 | E82: 0.963 | F82: 0.964 | G82: 0.9645 | H82: 0.9657 | I82: 0.9666 | J82: 0.9669 | K82: 0.9662 | L82: 0.9669 | M82: 0.9666 | N82: 0.9676 | O82: 0.9682 | P82: 0.9673 | Q82: 0.9673 | R82: 0.9674 | S82: 0.9689 | T82: 0.9693 | U82: 0.9694 | V82: 0.9701 | W82: 0.9708 | X82: 0.9717 | Y82: 0.9728 | Z82: 0.9735 | AA82: 0.9738 | AB82: 0.9743 | AC82: 0.9746 | AD82: 0.974792464 | AE82: 0.9755663645 | AF82: 0.976083064 | AG82: 0.9769136592 | AH82: 0.9769603061 | AI82: 0.976773489 | AJ82: 0.9774838534 | AK82: 0.9777886016 | AL82: 0.9780373431 | AM82: 0.9781153298 | AN82: 0.9784034285 | AO82: 0.9786233329 | AP82: 0.9791656827 | AQ82: 0.9797990527 | AR82: 0.9806679475 | AS82: 0.9812583776 | AT82: 0.981353632 | AU82: 0.9816156636 | AV82: 0.9820827735 | AW82: 0.9822607894 | AX82: 0.9825140252 | AY82: 0.9828964829 | AZ82: 0.9833278243 | BA82: 0.9843998023 | BB82: 0.9848345095 | BC82: 0.9847941549 | BD82: 0.9850577959 | BE82: 0
A83: % of Repayment Mortgages | B83: 0.0369 | C83: 0.0367 | D83: 0.0372 | E83: 0.037 | F83: 0.036 | G83: 0.0355 | H83: 0.0343 | I83: 0.0334 | J83: 0.0331 | K83: 0.0338 | L83: 0.0331 | M83: 0.0334 | N83: 0.0324 | O83: 0.0318 | P83: 0.0327 | Q83: 0.0327 | R83: 0.0326 | S83: 0.0311 | T83: 0.0307 | U83: 0.0306 | V83: 0.0299 | W83: 0.0292 | X83: 0.0283 | Y83: 0.0272 | Z83: 0.0265 | AA83: 0.0262 | AB83: 0.0257 | AC83: 0.0254 | AD83: 0.02520753599 | AE83: 0.02443363555 | AF83: 0.02391693605 | AG83: 0.02308634075 | AH83: 0.0230396939 | AI83: 0.02322651103 | AJ83: 0.02251614664 | AK83: 0.02221139842 | AL83: 0.0219626569 | AM83: 0.02188467018 | AN83: 0.02159657153 | AO83: 0.02137666706 | AP83: 0.0208343173 | AQ83: 0.0202009473 | AR83: 0.01933205248 | AS83: 0.01874162236 | AT83: 0.01864636805 | AU83: 0.01838433644 | AV83: 0.01791722648 | AW83: 0.01773921057 | AX83: 0.01748597483 | AY83: 0.01710351709 | AZ83: 0.01667217567 | BA83: 0.01560019773 | BB83: 0.01516549055 | BC83: 0.01520584506 | BD83: 0.01494220407 | BE83: 0
A84: % of Mortgages in London | B84: 0.1824 | C84: 0.1823 | D84: 0.1823 | E84: 0.18 | F84: 0.1812 | G84: 0.1815 | H84: 0.1818 | I84: 0.1812 | J84: 0.1816 | K84: 0.1817 | L84: 0.1813 | M84: 0.1821 | N84: 0.1824 | O84: 0.1787 | P84: 0.1762 | Q84: 0.1763 | R84: 0.1757 | S84: 0.1749 | T84: 0.1741 | U84: 0.1747 | V84: 0.1749 | W84: 0.1746 | X84: 0.1748 | Y84: 0.1737 | Z84: 0.1739 | AA84: 0.1738 | AB84: 0.1733 | AC84: 0.1733 | AD84: 0.1724072782 | AE84: 0.1715438759 | AF84: 0.1719817618 | AG84: 0.1711343553 | AH84: 0.1716448731 | AI84: 0.172948326 | AJ84: 0.173708669 | AK84: 0.1716722714 | AL84: 0.1719571039 | AM84: 0.1770603759 | AN84: 0.1763589685 | AO84: 0.1750333191 | AP84: 0.174157527 | AQ84: 0.1752028038 | AR84: 0.1753357017 | AS84: 0.173257684 | AT84: 0.1720710957 | AU84: 0.1718928357 | AV84: 0.1716989982 | AW84: 0.1731961171 | AX84: 0.1721801201 | AY84: 0.1703837354 | AZ84: 0.1723532103 | BA84: 0.1730402085 | BB84: 0.1692612822 | BC84: 0.1675628743 | BD84: 0.1419673516 | BE84: 0
A85: % of Mortgages in the South East | B85: 0.214 | C85: 0.215 | D85: 0.2125 | E85: 0.2112 | F85: 0.212 | G85: 0.2126 | H85: 0.2128 | I85: 0.2131 | J85: 0.2143 | K85: 0.2133 | L85: 0.214 | M85: 0.2123 | N85: 0.2125 | O85: 0.2133 | P85: 0.2145 | Q85: 0.2143 | R85: 0.2148 | S85: 0.2154 | T85: 0.2158 | U85: 0.2153 | V85: 0.2145 | W85: 0.2143 | X85: 0.2138 | Y85: 0.2134 | Z85: 0.2134 | AA85: 0.214 | AB85: 0.214 | AC85: 0.2141 | AD85: 0.2142137134 | AE85: 0.2146951319 | AF85: 0.2138262982 | AG85: 0.2114707263 | AH85: 0.2096495605 | AI85: 0.207454144 | AJ85: 0.2072746071 | AK85: 0.2065310695 | AL85: 0.2060152404 | AM85: 0.2046053519 | AN85: 0.2049996433 | AO85: 0.2032494627 | AP85: 0.2026118502 | AQ85: 0.2040369478 | AR85: 0.2017227563 | AS85: 0.2008578785 | AT85: 0.199874081 | AU85: 0.1985062876 | AV85: 0.1969208428 | AW85: 0.1971933087 | AX85: 0.1960018669 | AY85: 0.196095463 | AZ85: 0.1931738433 | BA85: 0.1896580428 | BB85: 0.1898733882 | BC85: 0.1909546509 | BD85: 0.1980051865 | BE85: 0
A86: % of Owner Occupied Mortgages | B86: 0 | C86: 0 | D86: 0 | E86: 0 | F86: 0 | G86: 0 | H86: 0 | I86: 0 | J86: 0 | K86: 0 | L86: 0 | M86: 0 | N86: 0 | O86: 0 | P86: 0 | Q86: 0 | R86: 0 | S86: 0 | T86: 0 | U86: 0 | V86: 0 | W86: 0 | X86: 0 | Y86: 0 | Z86: 0 | AA86: 0 | AB86: 0 | AC86: 0 | AD86: 0 | AE86: 0 | AF86: 0 | AG86: 0 | AH86: 0 | AI86: 0 | AJ86: 0 | AK86: 0 | AL86: 0 | AM86: 0 | AN86: 0 | AO86: 0 | AP86: 0 | AQ86: 0 | AR86: 0 | AS86: 0 | AT86: 0 | AU86: 0 | AV86: 0 | AW86: 0 | AX86: 0 | AY86: 0 | AZ86: 0 | BA86: 0 | BB86: 0 | BC86: 0 | BD86: 0 | BE86: 0
A87: % of Investment Home Loans - Professional Landlords | B87: 0.7922 | C87: 0.7906 | D87: 0.793 | E87: 0.798 | F87: 0.7991 | G87: 0.7996 | H87: 0.8028 | I87: 0.8029 | J87: 0.803 | K87: 0.8034 | L87: 0.8032 | M87: 0.8026 | N87: 0.8021 | O87: 0.8021 | P87: 0.8026 | Q87: 0.8035 | R87: 0.8042 | S87: 0.8051 | T87: 0.8077 | U87: 0.8085 | V87: 0.809 | W87: 0.8104 | X87: 0.8111 | Y87: 0.8121 | Z87: 0.8126 | AA87: 0.8135 | AB87: 0.8138 | AC87: 0.815 | AD87: 0.8155291104 | AE87: 0.8159204212 | AF87: 0.8171607675 | AG87: 0.8179369672 | AH87: 0.8195884997 | AI87: 0.8210672059 | AJ87: 0.8218355866 | AK87: 0.8228280568 | AL87: 0.8240852483 | AM87: 0.825455221 | AN87: 0.8288151414 | AO87: 0.8300179803 | AP87: 0.8309166222 | AQ87: 0.8313266309 | AR87: 0.8320092724 | AS87: 0.8338669634 | AT87: 0.8341160845 | AU87: 0.8339453003 | AV87: 0.8353220114 | AW87: 0.8360869341 | AX87: 0.837610801 | AY87: 0.8390879418 | AZ87: 0.841149935 | BA87: 0.8399675517 | BB87: 0.8420227545 | BC87: 0.8418225219 | BD87: 0.8388150297 | BE87: 0
A88: % of Investment Home Loans - Emerging Professional Landlords | B88: 0.2078 | C88: 0.2094 | D88: 0.207 | E88: 0.202 | F88: 0.2009 | G88: 0.2004 | H88: 0.1972 | I88: 0.1971 | J88: 0.197 | K88: 0.1966 | L88: 0.1968 | M88: 0.1974 | N88: 0.1979 | O88: 0.1979 | P88: 0.1974 | Q88: 0.1965 | R88: 0.1958 | S88: 0.1949 | T88: 0.1923 | U88: 0.1915 | V88: 0.191 | W88: 0.1896 | X88: 0.1889 | Y88: 0.1879 | Z88: 0.1874 | AA88: 0.1865 | AB88: 0.1862 | AC88: 0.185 | AD88: 0.1844708896 | AE88: 0.1840795788 | AF88: 0.1828392325 | AG88: 0.1820630328 | AH88: 0.1804115003 | AI88: 0.1789327941 | AJ88: 0.1781644134 | AK88: 0.1771719432 | AL88: 0.1759147517 | AM88: 0.174544779 | AN88: 0.1711848586 | AO88: 0.1699820197 | AP88: 0.1690833778 | AQ88: 0.1686733691 | AR88: 0.1679907276 | AS88: 0.1661330366 | AT88: 0.1658839155 | AU88: 0.1660546997 | AV88: 0.1646779886 | AW88: 0.1639130659 | AX88: 0.162389199 | AY88: 0.1609120582 | AZ88: 0.158850065 | BA88: 0.1600324483 | BB88: 0.1579772455 | BC88: 0.1581774781 | BD88: 0.1611849703 | BE88: 0
A89: Weighted Average Interest Coverage Ratio (calculated at the origination date) | B89: 1.47 | C89: 1.47 | D89: 1.47 | E89: 1.47 | F89: 1.47 | G89: 1.47 | H89: 1.47 | I89: 1.47 | J89: 1.47 | K89: 1.47 | L89: 1.47 | M89: 1.47 | N89: 1.47 | O89: 1.47 | P89: 1.47 | Q89: 1.47 | R89: 1.47 | S89: 1.47 | T89: 1.47 | U89: 1.47 | V89: 1.47 | W89: 1.47 | X89: 1.47 | Y89: 1.47 | Z89: 1.47 | AA89: 1.47 | AB89: 1.47 | AC89: 1.47 | AD89: 1.471222939 | AE89: 1.471840527 | AF89: 1.471950479 | AG89: 1.471101262 | AH89: 1.471540253 | AI89: 1.472131557 | AJ89: 1.473961566 | AK89: 1.476191716 | AL89: 1.477383416 | AM89: 1.479210452 | AN89: 1.477482564 | AO89: 1.478466846 | AP89: 1.479654102 | AQ89: 1.479019831 | AR89: 1.480422126 | AS89: 1.481052633 | AT89: 1.481919583 | AU89: 1.481837009 | AV89: 1.482593397 | AW89: 1.482842667 | AX89: 1.48372312 | AY89: 1.482762226 | AZ89: 1.484168638 | BA89: 1.486216797 | BB89: 1.483899557 | BC89: 1.48472353 | BD89: 1.482058111 | BE89: 0
A90: PML Lifetime Redemption Rate | B90: 0.0745 | C90: 0.0708 | D90: 0.0752 | E90: 0.0753 | F90: 0.067 | G90: 0.0596 | H90: 0.0575 | I90: 0.0542 | J90: 0.0516 | K90: 0.0475 | L90: 0.0449 | M90: 0.0433 | N90: 0.0419 | O90: 0.0405 | P90: 0.0407 | Q90: 0.0394 | R90: 0.0382 | S90: 0.037 | T90: 0.0364 | U90: 0.0353 | V90: 0.0342 | W90: 0.0336 | X90: 0.0326 | Y90: 0.0323 | Z90: 0.0317 | AA90: 0.0314 | AB90: 0.0312 | AC90: 0.031 | AD90: 0.0308 | AE90: 0.0308 | AF90: 0.0305 | AG90: 0.0307 | AH90: 0.031 | AI90: 0.0315 | AJ90: 0.0319 | AK90: 0.0331 | AL90: 0.0334 | AM90: 0.0338 | AN90: 0.0344 | AO90: 0.0352 | AP90: 0.0354 | AQ90: 0.0356 | AR90: 0.0359 | AS90: 0.0362 | AT90: 0.037 | AU90: 0.0373 | AV90: 0.0377 | AW90: 0.0379 | AX90: 0.0382 | AY90: 0.0387 | AZ90: 0.0391 | BA90: 0.0395 | BB90: 0.0397 | BC90: 0.04 | BD90: 0.0424 | BE90: 0
A91: Number of Properties in Possession | B91: 0 | C91: 2 | D91: 2 | E91: 2 | F91: 0 | G91: 0 | H91: 0 | I91: 1 | J91: 0 | K91: 0 | L91: 0 | M91: 0 | N91: 0 | O91: 0 | P91: 0 | Q91: 0 | R91: 0 | S91: 0 | T91: 0 | U91: 0 | V91: 0 | W91: 0 | X91: 0 | Y91: 0 | Z91: 0 | AA91: 0 | AB91: 0 | AC91: 0 | AD91: 2 | AE91: 2 | AF91: 1 | AG91: 1 | AH91: 0 | AI91: 1 | AJ91: 0 | AK91: 0 | AL91: 0 | AM91: 0 | AN91: 0 | AO91: 0 | AP91: 0 | AQ91: 0 | AR91: 0 | AS91: 0 | AT91: 0 | AU91: 0 | AV91: 0 | AW91: 0 | AX91: 0 | AY91: 1 | AZ91: 1 | BA91: 1 | BB91: 0 | BC91: 0 | BD91: 0 | BE91: 0
A92: Appointment of a Receiver of Rent | B92: 2 | C92: 3 | D92: 12 | E92: 9 | F92: 34 | G92: 50 | H92: 97 | I92: 116 | J92: 115 | K92: 118 | L92: 101 | M92: 91 | N92: 84 | O92: 83 | P92: 84 | Q92: 81 | R92: 81 | S92: 93 | T92: 91 | U92: 84 | V92: 86 | W92: 86 | X92: 85 | Y92: 82 | Z92: 80 | AA92: 78 | AB92: 76 | AC92: 75 | AD92: 75 | AE92: 73 | AF92: 72 | AG92: 88 | AH92: 83 | AI92: 77 | AJ92: 75 | AK92: 71 | AL92: 71 | AM92: 68 | AN92: 66 | AO92: 64 | AP92: 66 | AQ92: 64 | AR92: 63 | AS92: 62 | AT92: 58 | AU92: 55 | AV92: 50 | AW92: 50 | AX92: 56 | AY92: 56 | AZ92: 53 | BA92: 53 | BB92: 52 | BC92: 51 | BD92: 48 | BE92: 0
A93: PML Quarterly Losses | B93: 0 | C93: 0 | D93: 0 | E93: 0 | F93: 0 | G93: 10 | H93: 0 | I93: 0 | J93: 294 | K93: 0 | L93: 142 | M93: 476 | N93: 176 | O93: 11 | P93: 152 | Q93: 179 | R93: 310 | S93: -1 | T93: 219 | U93: -80 | V93: 41 | W93: 68 | X93: 4 | Y93: 120 | Z93: 240 | AA93: 8 | AB93: 286 | AC93: -20 | AD93: -9 | AE93: 237 | AF93: 191 | AG93: 41 | AH93: 194 | AI93: 38 | AJ93: 361 | AK93: 61 | AL93: -6 | AM93: 363 | AN93: 407 | AO93: -1 | AP93: 73 | AQ93: 209 | AR93: -8 | AS93: 110 | AT93: 108 | AU93: 44 | AV93: 465 | AW93: 38 | AX93: -4 | AY93: 11 | AZ93: 273 | BA93: 194 | BB93: 51 | BC93: 2 | BD93: 413 | BE93: 0
A94: Arrears excluding Receiver of Rent and Possession Cases
A95: Performing Loans | B95: 0.9986 | C95: 0.9985 | D95: 0.9934 | E95: 0.9901 | F95: 0.9925 | G95: 0.9752 | H95: 0.9734 | I95: 0.9728 | J95: 0.9669 | K95: 0.9676 | L95: 0.9745 | M95: 0.9888 | N95: 0.9847 | O95: 0.985 | P95: 0.9835 | Q95: 0.9846 | R95: 0.9823 | S95: 0.9884 | T95: 0.9828 | U95: 0.9813 | V95: 0.9849 | W95: 0.9875 | X95: 0.9847 | Y95: 0.9902 | Z95: 0.9967 | AA95: 0.9987 | AB95: 0.9982 | AC95: 0.9975 | AD95: 0.9982382641 | AE95: 0.9989622475 | AF95: 0.9984606106 | AG95: 0.9963352943 | AH95: 0.9986925063 | AI95: 1 | AJ95: 0.9990043777 | AK95: 0.9993354076 | AL95: 0.9969503748 | AM95: 0.9977699102 | AN95: 0.9996489852 | AO95: 0.9983469549 | AP95: 0.9992780866 | AQ95: 0.9990767636 | AR95: 0.9984677278 | AS95: 0.9993340469 | AT95: 0.998901053 | AU95: 0.9990043422 | AV95: 0.997730247 | AW95: 0.9758498963 | AX95: 0.9971195508 | AY95: 0.9978329898 | AZ95: 0.9812086295 | BA95: 0.982162616 | BB95: 0.9940316071 | BC95: 0.9964345856 | BD95: 0.9943488017 | BE95: 0
A96: >1 to 2 months arrears | B96: 0.0003 | C96: 0.0014 | D96: 0.0043 | E96: 0.0072 | F96: 0.0043 | G96: 0.0184 | H96: 0.013 | I96: 0.0199 | J96: 0.0215 | K96: 0.0192 | L96: 0.0131 | M96: 0.0056 | N96: 0.0111 | O96: 0.0101 | P96: 0.0119 | Q96: 0.0107 | R96: 0.0125 | S96: 0.0094 | T96: 0.0139 | U96: 0.0154 | V96: 0.0132 | W96: 0.0111 | X96: 0.014 | Y96: 0.0086 | Z96: 0.0023 | AA96: 0.0003 | AB96: 0.0004 | AC96: 0.0019 | AD96: 0.0004346894749 | AE96: 0 | AF96: 0.001215791205 | AG96: 0.003335668727 | AH96: 0.001194394931 | AI96: 0 | AJ96: 0.0009956223372 | AK96: 0.000664592442 | AL96: 0.00290624233 | AM96: 0.001447079313 | AN96: 0 | AO96: 0.001653045123 | AP96: 0.0007219134143 | AQ96: 0.0007366096954 | AR96: 0.0007622684483 | AS96: 0.0004748837235 | AT96: 0.0003242163348 | AU96: 0.0005581776815 | AV96: 0.0007028228449 | AW96: 0.01375294679 | AX96: 0.002336110056 | AY96: 0.001671040513 | AZ96: 0.01653870413 | BA96: 0.01238784558 | BB96: 0.002263550213 | BC96: 0.001134946438 | BD96: 0.004192538273 | BE96: 0
A97: >2 to 3 months arrears | B97: 0 | C97: 0.0001 | D97: 0.0017 | E97: 0.0013 | F97: 0.0017 | G97: 0.0041 | H97: 0.0057 | I97: 0.0047 | J97: 0.0093 | K97: 0.0078 | L97: 0.0088 | M97: 0.0026 | N97: 0.0026 | O97: 0.0033 | P97: 0.0022 | Q97: 0.0028 | R97: 0.0035 | S97: 0.0006 | T97: 0.002 | U97: 0.002 | V97: 0.0004 | W97: 0.0009 | X97: 0.0001 | Y97: 0.0005 | Z97: 0.0005 | AA97: 0.0005 | AB97: 0.001 | AC97: 0.0003 | AD97: 0.000422373824 | AE97: 0.0009280913469 | AF97: 0.0002134644975 | AG97: 0.0002170522716 | AH97: 0 | AI97: 0 | AJ97: 0 | AK97: 0 | AL97: 0 | AM97: 0.0007830104607 | AN97: 0.0003510147736 | AO97: 0 | AP97: 0 | AQ97: 0 | AR97: 0.0007700037152 | AS97: 0.0001910694149 | AT97: 0.0003424408943 | AU97: 0.0002407107363 | AV97: 0.0005038389487 | AW97: 0.004172925295 | AX97: 0.0003085461503 | AY97: 0.0002561198567 | AZ97: 0.002252666395 | BA97: 0.003744207921 | BB97: 0.001039627181 | BC97: 0.00151855457 | BD97: 0.0002725148418 | BE97: 0
A98: >3 months arrears | B98: 0.0011 | C98: 0 | D98: 0.0006 | E98: 0.0014 | F98: 0.0015 | G98: 0.0023 | H98: 0.0079 | I98: 0.0026 | J98: 0.0023 | K98: 0.0054 | L98: 0.0036 | M98: 0.003 | N98: 0.0016 | O98: 0.0016 | P98: 0.0024 | Q98: 0.0019 | R98: 0.0017 | S98: 0.0016 | T98: 0.0013 | U98: 0.0013 | V98: 0.0015 | W98: 0.0005 | X98: 0.0012 | Y98: 0.0007 | Z98: 0.0005 | AA98: 0.0005 | AB98: 0.0004 | AC98: 0.0003 | AD98: 0.0009046726459 | AE98: 0.0001096611729 | AF98: 0.0001101336935 | AG98: 0.0001119847498 | AH98: 0.0001130987692 | AI98: 0 | AJ98: 0 | AK98: 0 | AL98: 0.000143382898 | AM98: 0 | AN98: 0 | AO98: 0 | AP98: 0 | AQ98: 0.000186626753 | AR98: 0 | AS98: 0 | AT98: 0.0004322897298 | AU98: 0.0001967693921 | AV98: 0.001063091182 | AW98: 0.006224231645 | AX98: 0.0002357930214 | AY98: 0.0002398498203 | AZ98: 0 | BA98: 0.001705330546 | BB98: 0.002665215528 | BC98: 0.0009119133767 | BD98: 0.001186145144 | BE98: 0
A99: Total | B99: =SUM(B95:B98) -> 1 | C99: 1 | D99: 1 | E99: 1 | F99: 1 | G99: 1 | H99: 1 | I99: 1 | J99: 1 | K99: 1 | L99: 1 | M99: 1 | N99: 1 | O99: 1 | P99: 1 | Q99: 1 | R99: 1 | S99: 1 | T99: =SUM(T95:T98) -> 1 | U99: 1 | V99: 1 | W99: 1 | X99: 1 | Y99: 1 | Z99: =SUM(Z95:Z98) -> 1 | AA99: =SUM(AA95:AA98) -> 1 | AB99: =SUM(AB95:AB98) -> 1 | AC99: =SUM(AC95:AC98) -> 1 | AD99: =SUM(AD95:AD98) -> 1 | AE99: 1 | AF99: 1 | AG99: 1 | AH99: 1 | AI99: 1 | AJ99: 1 | AK99: 1 | AL99: 1 | AM99: 1 | AN99: 1 | AO99: 1 | AP99: 1 | AQ99: 1 | AR99: 1 | AS99: 1 | AT99: 1 | AU99: 1 | AV99: 1 | AW99: 1 | AX99: 1 | AY99: 1 | AZ99: 1 | BA99: 1 | BB99: 1 | BC99: 1 | BD99: 1 | BE99: =SUM(BE95:BE98) -> 0
A101: Underlying Assets - Mortgage Trust Originated Assets | B101: 2007-08-31 | C101: 2007-11-30 | D101: 2008-02-29 | E101: 2008-05-30 | F101: 2008-08-31 | G101: 2008-11-28 | H101: 2009-02-27 | I101: 2009-05-29 | J101: 2009-08-28 | K101: 2009-11-30 | L101: 2010-02-26 | M101: 2010-05-28 | N101: 2010-08-31 | O101: 2010-11-30 | P101: 2011-02-28 | Q101: 2011-05-31 | R101: 2011-08-31 | S101: 2011-11-30 | T101: 2012-02-29 | U101: 2012-05-31 | V101: 2012-08-31 | W101: 2012-11-30 | X101: 2013-02-28 | Y101: 2013-05-31 | Z101: 2013-08-30 | AA101: 2013-11-29 | AB101: 2014-02-28 | AC101: 2014-05-30 | AD101: 2014-08-29 | AE101: 2014-11-28 | AF101: 2015-02-27 | AG101: =+AG70 -> 2015-05-29 | AH101: 2015-08-28 | AI101: 2015-11-30 | AJ101: 2016-02-29 | AK101: 2016-05-31 | AL101: 2016-08-31 | AM101: =+AM70 -> 2016-11-30 | AN101: 2017-02-28 | AO101: =+AO70 -> 2017-05-31 | AP101: 2017-08-31 | AQ101: =+AQ70 -> 2017-11-30 | AR101: 2018-02-28 | AS101: =+AS70 -> 2018-05-31 | AT101: 2018-08-31 | AU101: =+AU70 -> 2018-11-30 | AV101: 2019-02-28 | AW101: =+AW70 -> 2019-05-31 | AX101: 2019-08-30 | AY101: =+AY70 -> 2019-11-29 | AZ101: 2020-02-28 | BA101: =+BA70 -> 2020-05-29 | BB101: 2020-08-28 | BC101: =+BC70 -> 2020-11-30 | BD101: 2021-02-26 | BE101: =+BE70 -> 2021-05-28
A102: Weighted Average LTV | B102: 0.7868 | C102: 0.7865 | D102: 0.7869 | E102: 0.7877 | F102: 0.7881 | G102: 0.7893 | H102: 0.7911 | I102: 0.7917 | J102: 0.7917 | K102: 0.7917 | L102: 0.7924 | M102: 0.7923 | N102: 0.7923 | O102: 0.792 | P102: 0.7921 | Q102: 0.7922 | R102: 0.7923 | S102: 0.7921 | T102: 0.792 | U102: 0.7919 | V102: 0.7919 | W102: 0.7917 | X102: 0.7916 | Y102: 0.7912 | Z102: 0.791 | AA102: 0.7904 | AB102: 0.7899 | AC102: 0.7894 | AD102: 0.7889334886 | AE102: 0.7880998394 | AF102: 0.7877051552 | AG102: 0.7870340353 | AH102: 0.786150078 | AI102: 0.7855989078 | AJ102: 0.7856511078 | AK102: 0.7855980727 | AL102: 0.785022859 | AM102: 0.7845206779 | AN102: 0.7852698001 | AO102: 0.7847855289 | AP102: 0.7840661107 | AQ102: 0.7840082671 | AR102: 0.7840387488 | AS102: 0.7834113176 | AT102: 0.7842380332 | AU102: 0.7833694986 | AV102: 0.7837513438 | AW102: 0.7837234409 | AX102: 0.7833342495 | AY102: 0.7823747987 | AZ102: 0.7816756255 | BA102: 0.7817722201 | BB102: 0.7819430398 | BC102: 0.7815046699 | BD102: 0.7818398184 | BE102: 0
A103: Weighted Average Nationwide Indexed LTV | B103: 0.743 | C103: 0.7317 | D103: 0.7339 | E103: 0.7521 | F103: 0.7779 | G103: 0.8454 | H103: 0.8716 | I103: 0.917 | J103: 0.8822 | K103: 0.8484 | L103: 0.8367 | M103: 0.8283 | N103: 0.8108 | O103: 0.8024 | P103: 0.8264 | Q103: 0.8231 | R103: 0.8072 | S103: 0.81 | T103: 0.8144 | U103: 0.8257 | V103: 0.8128 | W103: 0.8114 | X103: 0.8189 | Y103: 0.817 | Z103: 0.7969 | AA103: 0.7772 | AB103: 0.76 | AC103: 0.7444 | AD103: 0.7063619908 | AE103: 0.6991848992 | AF103: 0.6985831833 | AG103: 0.6991303589 | AH103: 0.6777970424 | AI103: 0.6711874235 | AJ103: 0.6676693947 | AK103: 0.6639312039 | AL103: 0.6432305007 | AM103: 0.6388597046 | AN103: 0.6401997876 | AO103: 0.6366539628 | AP103: 0.6262638581 | AQ103: 0.6230969505 | AR103: 0.6237412689 | AS103: 0.6215123535 | AT103: 0.6162874854 | AU103: 0.6127210303 | AV103: 0.6176908023 | AW103: 0.625410797 | AX103: 0.6168485781 | AY103: 0.6147469933 | AZ103: 0.6191805297 | BA103: 0.6134659269 | BB103: 0.6064239413 | BC103: 0.5925790918 | BD103: 0.5813696971 | BE103: 0
A104: Weighted Average Halifax Indexed LTV | B104: 0.7385 | C104: 0.7283 | D104: 0.7484 | E104: 0.7631 | F104: 0.7843 | G104: 0.8439 | H104: 0.9041 | I104: 0.9413 | J104: 0.933 | K104: 0.9056 | L104: 0.8835 | M104: 0.8747 | N104: 0.8628 | O104: 0.8753 | P104: 0.8871 | Q104: 0.8981 | R104: 0.8907 | S104: 0.8863 | T104: 0.8836 | U104: 0.8876 | V104: 0.886 | W104: 0.8846 | X104: 0.8876 | Y104: 0.8711 | Z104: 0.8459 | AA104: 0.8292 | AB104: 0.8226 | AC104: 0.8026 | AD104: 0.7705642453 | AE104: 0.7419950939 | AF104: 0.7500488142 | AG104: 0.7325643006 | AH104: 0.6975803068 | AI104: 0.6867245208 | AJ104: 0.6864151965 | AK104: 0.659019232 | AL104: 0.6411260263 | AM104: n/a | AN104: n/a | AO104: n/a | AP104: n/a | AQ104: n/a | AR104: n/a | AS104: n/a | AT104: n/a | AU104: n/a | AV104: n/a | AW104: n/a | AX104: n/a | AY104: n/a | AZ104: n/a | BA104: n/a | BB104: n/a | BC104: n/a | BD104: n/a | BE104: n/a
A105: % of Variable Rate Mortgages | B105: 0.0003 | C105: 0.0004 | D105: 0.0004 | E105: 0.0004 | F105: 0.0002 | G105: 0.0002 | H105: 0.0002 | I105: 0.0002 | J105: 0.0002 | K105: 0.0002 | L105: 0.0002 | M105: 0.0002 | N105: 0.0002 | O105: 0.0002 | P105: 0.0002 | Q105: 0.0002 | R105: 0.0002 | S105: 0.0002 | T105: 0.0002 | U105: 0.0002 | V105: 0.0002 | W105: 0.0002 | X105: 0.0002 | Y105: 0.0001 | Z105: 0.0001 | AA105: 0.0001 | AB105: 0.0001 | AC105: 0.0001 | AD105: 9.237427868e-05 | AE105: 9.10095684e-05 | AF105: 8.941245111e-05 | AG105: 8.767210657e-05 | AH105: 8.844854698e-05 | AI105: 8.975582968e-05 | AJ105: 0 | AK105: 0 | AL105: 0 | AM105: 0 | AN105: 0 | AO105: 0 | AP105: 0 | AQ105: 0 | AR105: 0 | AS105: 0 | AT105: 0 | AU105: 0 | AV105: 0 | AW105: 0 | AX105: 0 | AY105: 0 | AZ105: 0 | BA105: 0 | BB105: 0 | BC105: 0 | BD105: 0 | BE105: 0
A106: % of Fixed Rate Mortgages | B106: 0.8415 | C106: 0.8108 | D106: 0.8148 | E106: 0.7471 | F106: 0.7397 | G106: 0.5698 | H106: 0.2663 | I106: 0.1351 | J106: 0.1126 | K106: 0.1109 | L106: 0.0905 | M106: 0.0667 | N106: 0.0417 | O106: 0.0414 | P106: 0.0269 | Q106: 0.0156 | R106: 0.005 | S106: 0.0026 | T106: 0.0023 | U106: 0.0023 | V106: 0.0013 | W106: 0.0013 | X106: 0.0013 | Y106: 0.001 | Z106: 0 | AA106: 0 | AB106: 0 | AC106: 0 | AD106: 0 | AE106: 0 | AF106: 0 | AG106: 0 | AH106: 0 | AI106: 0 | AJ106: 0 | AK106: 0 | AL106: 0 | AM106: 0 | AN106: 0 | AO106: 0 | AP106: 0 | AQ106: 0 | AR106: 0 | AS106: 0 | AT106: 0 | AU106: 0 | AV106: 0 | AW106: 0 | AX106: 0 | AY106: 0 | AZ106: 0 | BA106: 0 | BB106: 0 | BC106: 0 | BD106: 0 | BE106: 0
A107: % of Base Rate Mortgages | B107: 0.1461 | C107: 0.1439 | D107: 0.1432 | E107: 0.1496 | F107: 0.153 | G107: 0.1615 | H107: 0.1688 | I107: 0.1743 | J107: 0.1743 | K107: 0.1751 | L107: 0.1762 | M107: 0.1768 | N107: 0.1768 | O107: 0.1769 | P107: 0.1782 | Q107: 0.178 | R107: 0.1786 | S107: 0.1789 | T107: 0.1793 | U107: 0.1798 | V107: 0.1793 | W107: 0.1791 | X107: 0.1795 | Y107: 0.1801 | Z107: 0.1796 | AA107: 0.1782 | AB107: 0.1782 | AC107: 0.1779 | AD107: 0.1779025875 | AE107: 0.1781507259 | AF107: 0.17829699 | AG107: 0.1783467979 | AH107: 0.1781966379 | AI107: 0.1789043926 | AJ107: 0.1798228515 | AK107: 0.1819159728 | AL107: 0.1829765966 | AM107: 0.1830359474 | AN107: 0.1853415909 | AO107: 0.1860065256 | AP107: 0.1864918303 | AQ107: 0.1890248713 | AR107: 0.1903265097 | AS107: 0.1919059429 | AT107: 0.1912647137 | AU107: 0.1912922557 | AV107: 0.1922802401 | AW107: 0.1953289581 | AX107: 0.1963366876 | AY107: 0.1968289983 | AZ107: 0.196744154 | BA107: 0.1981753591 | BB107: 0.1989374292 | BC107: 0.1987548052 | BD107: 0.1999046156 | BE107: 0
A108: % of Libor Linked Mortgages | B108: 0.0121 | C108: 0.045 | D108: 0.0417 | E108: 0.1029 | F108: 0.107 | G108: 0.2685 | H108: 0.5647 | I108: 0.6904 | J108: 0.7128 | K108: 0.7138 | L108: 0.7331 | M108: 0.7563 | N108: 0.7812 | O108: 0.7815 | P108: 0.7947 | Q108: 0.8062 | R108: 0.8162 | S108: 0.8183 | T108: 0.8183 | U108: 0.8177 | V108: 0.8192 | W108: 0.8194 | X108: 0.819 | Y108: 0.8188 | Z108: 0.8203 | AA108: 0.8217 | AB108: 0.8217 | AC108: 0.822 | AD108: 0.8220050382 | AE108: 0.8217582645 | AF108: 0.8216135976 | AG108: 0.82156553 | AH108: 0.8217149135 | AI108: 0.8210058515 | AJ108: 0.8201771485 | AK108: 0.8180840272 | AL108: 0.8170234034 | AM108: 0.8169640526 | AN108: 0.8146584091 | AO108: 0.8139934744 | AP108: 0.8135081697 | AQ108: 0.8109751287 | AR108: 0.8096734903 | AS108: 0.8080940571 | AT108: 0.8087352863 | AU108: 0.8087077443 | AV108: 0.8077197599 | AW108: 0.8046710419 | AX108: 0.8036633124 | AY108: 0.8031710017 | AZ108: 0.803255846 | BA108: 0.8018246409 | BB108: 0.8010625708 | BC108: 0.8012451948 | BD108: 0.8000953844 | BE108: 0
A109: Weighted Average Loan Size | B109: 147840.54 | C109: 147374.49 | D109: 147436.25 | E109: 146388.29 | F109: 146131.11 | G109: 144863 | H109: 143652.83 | I109: 143448.83 | J109: 143470.56 | K109: 143333.46 | L109: 142840.58 | M109: 142686.8 | N109: 142321.58 | O109: 142237.34 | P109: 141788.24 | Q109: 141606.65 | R109: 141575.45 | S109: 141251.33 | T109: 141161.46 | U109: 140871.83 | V109: 140395.97 | W109: 140167.4 | X109: 140040.38 | Y109: 139900.4 | Z109: 139617.46 | AA109: 139290.46 | AB109: 139003.78 | AC109: 138624.66 | AD109: 138306.0303 | AE109: 138146.2696 | AF109: 137891.9726 | AG109: 137827.3856 | AH109: 137435.0301 | AI109: 137218.141 | AJ109: 137124.89 | AK109: 136708.6442 | AL109: 136300.3557 | AM109: 136006.1146 | AN109: 135914.778 | AO109: 135754.642 | AP109: 135234.9977 | AQ109: 135169.6476 | AR109: 135042.2092 | AS109: 134713.2616 | AT109: 134316.1184 | AU109: 134074.5382 | AV109: 133388.0054 | AW109: 132662.4181 | AX109: 132349.0115 | AY109: 132333.8161 | AZ109: 131970.0973 | BA109: 131483.1316 | BB109: 131168.8402 | BC109: 130811.4388 | BD109: 130335.7435 | BE109: 0
A110: Weighted Average Interest Rate | B110: 0.05252 | C110: 0.05401 | D110: 0.05395 | E110: 0.05515 | F110: 0.05566 | G110: 0.05892 | H110: 0.05066 | I110: 0.03679 | J110: 0.03089 | K110: 0.02661 | L110: 0.02614 | M110: 0.02642 | N110: 0.02611 | O110: 0.0262 | P110: 0.02603 | Q110: 0.02632 | R110: 0.0263 | S110: 0.02672 | T110: 0.02794 | U110: 0.02808 | V110: 0.02755 | W110: 0.02502 | X110: 0.02371 | Y110: 0.02358 | Z110: 0.02353 | AA110: 0.02362 | AB110: 0.02369 | AC110: 0.02368 | AD110: 0.02374619535 | AE110: 0.0239830832 | AF110: 0.0239267408 | AG110: 0.0240057453 | AH110: 0.02405323957 | AI110: 0.02420210466 | AJ110: 0.02409897248 | AK110: 0.02422364589 | AL110: 0.02422039189 | AM110: 0.02211727533 | AN110: 0.02232570598 | AO110: 0.02227223464 | AP110: 0.02177724577 | AQ110: 0.02164359041 | AR110: 0.02409120171 | AS110: 0.02457671239 | AT110: 0.02487153117 | AU110: 0.02680373911 | AV110: 0.02758091694 | AW110: 0.02725098168 | AX110: 0.02681334052 | AY110: 0.02657286492 | AZ110: 0.02677117384 | BA110: 0.02397686033 | BB110: 0.02084135426 | BC110: 0.01961585524 | BD110: 0.01946830804 | BE110: 0
A111: Weighted Average Maturity Date (years) | B111: 20.8 | C111: 20.55 | D111: 20.29 | E111: 20.05 | F111: 19.79 | G111: 19.53 | H111: 19.32 | I111: 19.07 | J111: 18.83 | K111: 18.58 | L111: 18.34 | M111: 18.1 | N111: 17.85 | O111: 17.6 | P111: 17.35 | Q111: 17.12 | R111: 16.89 | S111: 16.63 | T111: 16.4 | U111: 16.15 | V111: 15.9 | W111: 15.66 | X111: 15.42 | Y111: 15.17 | Z111: 14.93 | AA111: 14.68 | AB111: 14.44 | AC111: 14.2 | AD111: 13.96843504 | AE111: 13.72734139 | AF111: 13.4818704 | AG111: 13.26278013 | AH111: 13.02613119 | AI111: 12.7839289 | AJ111: 12.54367278 | AK111: 12.32227996 | AL111: 12.07932104 | AM111: 11.91434348 | AN111: 11.82423067 | AO111: 11.63201331 | AP111: 11.43713499 | AQ111: 11.20934806 | AR111: 10.989841 | AS111: 10.76092271 | AT111: 10.53692398 | AU111: 10.31777462 | AV111: 10.09348837 | AW111: 9.864236824 | AX111: 9.631606899 | AY111: 9.39012646 | AZ111: 9.179290213 | BA111: 8.965998351 | BB111: 8.760395912 | BC111: 8.539450253 | BD111: 8.327119094 | BE111: 0
A112: Weighted Average Seasoning (months) | B112: 7.3 | C112: 10.29 | D112: 13.24 | E112: 16.19 | F112: 19.21 | G112: 22.2 | H112: 25.16 | I112: 28.18 | J112: 31.2 | K112: 34.19 | L112: 37.14 | M112: 40.17 | N112: 43.19 | O112: 46.19 | P112: 49.15 | Q112: 52.17 | R112: 55.2 | S112: 58.19 | T112: 61.18 | U112: 64.21 | V112: 67.24 | W112: 70.23 | X112: 73.19 | Y112: 76.17 | Z112: 79.19 | AA112: 82.18 | AB112: 85.14 | AC112: 88.17 | AD112: 91.19766889 | AE112: 94.18481037 | AF112: 97.13295879 | AG112: 100.1574676 | AH112: 103.1851316 | AI112: 106.1786559 | AJ112: 109.1687249 | AK112: 112.2019522 | AL112: 115.1523081 | AM112: 118.1410517 | AN112: 121.0978654 | AO112: 124.1161036 | AP112: 127.135095 | AQ112: 130.1264228 | AR112: 133.0841737 | AS112: 136.1101985 | AT112: 139.1316507 | AU112: 142.1230733 | AV112: 145.0846155 | AW112: 148.1088492 | AX112: 151.1237636 | AY112: 154.1101094 | AZ112: 157.1052218 | BA112: 160.1363089 | BB112: 163.1633786 | BC112: 166.1550082 | BD112: 169.1090498 | BE112: 0
A113: % of Interest Only Mortgages | B113: 0.9501 | C113: 0.9498 | D113: 0.9496 | E113: 0.9501 | F113: 0.9511 | G113: 0.9525 | H113: 0.953 | I113: 0.9524 | J113: 0.9525 | K113: 0.9533 | L113: 0.9564 | M113: 0.958 | N113: 0.9586 | O113: 0.9592 | P113: 0.9598 | Q113: 0.9602 | R113: 0.9601 | S113: 0.9607 | T113: 0.9614 | U113: 0.9605 | V113: 0.9618 | W113: 0.9624 | X113: 0.9633 | Y113: 0.9635 | Z113: 0.9644 | AA113: 0.9643 | AB113: 0.9644 | AC113: 0.9648 | AD113: 0.9650423518 | AE113: 0.9655346452 | AF113: 0.965737251 | AG113: 0.965253429 | AH113: 0.9658322768 | AI113: 0.9664508294 | AJ113: 0.9667820248 | AK113: 0.9679463615 | AL113: 0.969314528 | AM113: 0.9696706972 | AN113: 0.9704638396 | AO113: 0.9709496116 | AP113: 0.9712927392 | AQ113: 0.9715006569 | AR113: 0.972473927 | AS113: 0.9730708237 | AT113: 0.9748087089 | AU113: 0.9754574236 | AV113: 0.9762610506 | AW113: 0.9764763068 | AX113: 0.97706307 | AY113: 0.9777834691 | AZ113: 0.9781969857 | BA113: 0.9787790656 | BB113: 0.9784960071 | BC113: 0.9789341546 | BD113: 0.9793918197 | BE113: 0
A114: % of Repayment Mortgages | B114: 0.0499 | C114: 0.0502 | D114: 0.0504 | E114: 0.0499 | F114: 0.0489 | G114: 0.0475 | H114: 0.047 | I114: 0.0476 | J114: 0.0475 | K114: 0.0467 | L114: 0.0436 | M114: 0.042 | N114: 0.0414 | O114: 0.0408 | P114: 0.0402 | Q114: 0.0398 | R114: 0.0399 | S114: 0.0393 | T114: 0.0386 | U114: 0.0395 | V114: 0.0382 | W114: 0.0376 | X114: 0.0367 | Y114: 0.0365 | Z114: 0.0356 | AA114: 0.0357 | AB114: 0.0356 | AC114: 0.0352 | AD114: 0.03495764817 | AE114: 0.03446535482 | AF114: 0.03426274898 | AG114: 0.03474657104 | AH114: 0.03416772318 | AI114: 0.03354917062 | AJ114: 0.03321797515 | AK114: 0.03205363853 | AL114: 0.03068547197 | AM114: 0.03032930278 | AN114: 0.02953616042 | AO114: 0.0290503884 | AP114: 0.0287072608 | AQ114: 0.02849934313 | AR114: 0.02752607301 | AS114: 0.02692917631 | AT114: 0.0251912911 | AU114: 0.02454257642 | AV114: 0.02373894938 | AW114: 0.02352369319 | AX114: 0.02293693002 | AY114: 0.02221653094 | AZ114: 0.02180301433 | BA114: 0.02122093438 | BB114: 0.02150399293 | BC114: 0.02106584537 | BD114: 0.02060818035 | BE114: 0
A115: % of Mortgages in London | B115: 0.2678 | C115: 0.2652 | D115: 0.2631 | E115: 0.256 | F115: 0.2546 | G115: 0.2459 | H115: 0.2369 | I115: 0.236 | J115: 0.2371 | K115: 0.2365 | L115: 0.2347 | M115: 0.2337 | N115: 0.2335 | O115: 0.2325 | P115: 0.2329 | Q115: 0.2324 | R115: 0.2324 | S115: 0.2311 | T115: 0.23 | U115: 0.229 | V115: 0.2268 | W115: 0.2263 | X115: 0.2258 | Y115: 0.2252 | Z115: 0.2245 | AA115: 0.2236 | AB115: 0.2224 | AC115: 0.2207 | AD115: 0.2178606155 | AE115: 0.2159272332 | AF115: 0.2145866411 | AG115: 0.2146092363 | AH115: 0.2141610094 | AI115: 0.2111626113 | AJ115: 0.2116474798 | AK115: 0.2098796584 | AL115: 0.2093026123 | AM115: 0.2059340918 | AN115: 0.2063618931 | AO115: 0.2059130327 | AP115: 0.2062529796 | AQ115: 0.2067468726 | AR115: 0.2046683667 | AS115: 0.2038008018 | AT115: 0.20287637 | AU115: 0.2030934774 | AV115: 0.2004704135 | AW115: 0.1972161666 | AX115: 0.1941748793 | AY115: 0.1954916105 | AZ115: 0.195967421 | BA115: 0.1933747798 | BB115: 0.1928977286 | BC115: 0.1898470295 | BD115: 0.186614103 | BE115: 0
A116: % of Mortgages in the South East | B116: 0.3372 | C116: 0.3382 | D116: 0.3391 | E116: 0.3427 | F116: 0.3415 | G116: 0.3427 | H116: 0.3419 | I116: 0.3401 | J116: 0.3396 | K116: 0.339 | L116: 0.3387 | M116: 0.338 | N116: 0.3368 | O116: 0.3371 | P116: 0.3359 | Q116: 0.3349 | R116: 0.3341 | S116: 0.3351 | T116: 0.336 | U116: 0.3356 | V116: 0.3359 | W116: 0.3356 | X116: 0.3348 | Y116: 0.3351 | Z116: 0.3348 | AA116: 0.3345 | AB116: 0.335 | AC116: 0.3347 | AD116: 0.3336116184 | AE116: 0.334083191 | AF116: 0.3346956758 | AG116: 0.3348263846 | AH116: 0.3323872444 | AI116: 0.3328738831 | AJ116: 0.330472039 | AK116: 0.3281301511 | AL116: 0.3255060208 | AM116: 0.3245500908 | AN116: 0.322463214 | AO116: 0.3203886771 | AP116: 0.3187117131 | AQ116: 0.3166372479 | AR116: 0.3156319139 | AS116: 0.3140973826 | AT116: 0.309793142 | AU116: 0.3078515733 | AV116: 0.3075540884 | AW116: 0.3039980923 | AX116: 0.3037601839 | AY116: 0.302924102 | AZ116: 0.301611804 | BA116: 0.3018973842 | BB116: 0.2983784036 | BC116: 0.2962479471 | BD116: 0.2977287179 | BE116: 0
A117: % of Owner Occupied Mortgages | B117: 0 | C117: 0 | D117: 0 | E117: 0 | F117: 0 | G117: 0 | H117: 0 | I117: 0 | J117: 0 | K117: 0 | L117: 0 | M117: 0 | N117: 0 | O117: 0 | P117: 0 | Q117: 0 | R117: 0 | S117: 0 | T117: 0 | U117: 0 | V117: 0 | W117: 0 | X117: 0 | Y117: 0 | Z117: 0 | AA117: 0 | AB117: 0 | AC117: 0 | AD117: 0 | AE117: 0 | AF117: 0 | AG117: 0 | AH117: 0 | AI117: 0 | AJ117: 0 | AK117: 0 | AL117: 0 | AM117: 0 | AN117: 0 | AO117: 0 | AP117: 0 | AQ117: 0 | AR117: 0 | AS117: 0 | AT117: 0 | AU117: 0 | AV117: 0 | AW117: 0 | AX117: 0 | AY117: 0 | AZ117: 0 | BA117: 0 | BB117: 0 | BC117: 0 | BD117: 0 | BE117: 0
A118: % of Investment Home Loans - Professional Landlords | B118: 0.2911 | C118: 0.2905 | D118: 0.2891 | E118: 0.2815 | F118: 0.2827 | G118: 0.2877 | H118: 0.288 | I118: 0.2896 | J118: 0.2902 | K118: 0.2895 | L118: 0.2908 | M118: 0.2925 | N118: 0.293 | O118: 0.2937 | P118: 0.2929 | Q118: 0.2936 | R118: 0.2947 | S118: 0.2946 | T118: 0.2955 | U118: 0.2958 | V118: 0.2958 | W118: 0.2956 | X118: 0.2968 | Y118: 0.2979 | Z118: 0.2984 | AA118: 0.2978 | AB118: 0.2966 | AC118: 0.2976 | AD118: 0.2987047082 | AE118: 0.3004115697 | AF118: 0.3007980745 | AG118: 0.3014119859 | AH118: 0.3027587835 | AI118: 0.3028748933 | AJ118: 0.3043061771 | AK118: 0.3044627987 | AL118: 0.3055303697 | AM118: 0.30693013 | AN118: 0.3073321221 | AO118: 0.3073149941 | AP118: 0.3076810695 | AQ118: 0.3090715932 | AR118: 0.3094603536 | AS118: 0.3095642412 | AT118: 0.3127943004 | AU118: 0.3146606894 | AV118: 0.3111333199 | AW118: 0.3137733769 | AX118: 0.3141449167 | AY118: 0.3153455519 | AZ118: 0.3178967786 | BA118: 0.3197468333 | BB118: 0.3215154196 | BC118: 0.3237269166 | BD118: 0.3261183147 | BE118: 0
A119: % of Investment Home Loans - Emerging Professional Landlords | B119: 0.7089 | C119: 0.7095 | D119: 0.7109 | E119: 0.7185 | F119: 0.7173 | G119: 0.7123 | H119: 0.712 | I119: 0.7104 | J119: 0.7098 | K119: 0.7105 | L119: 0.7092 | M119: 0.7075 | N119: 0.707 | O119: 0.7063 | P119: 0.7071 | Q119: 0.7064 | R119: 0.7053 | S119: 0.7054 | T119: 0.7045 | U119: 0.7042 | V119: 0.7042 | W119: 0.7044 | X119: 0.7032 | Y119: 0.7021 | Z119: 0.7016 | AA119: 0.7022 | AB119: 0.7034 | AC119: 0.7024 | AD119: 0.7012952918 | AE119: 0.6995884303 | AF119: 0.6992019255 | AG119: 0.6985880141 | AH119: 0.6972412165 | AI119: 0.6971251067 | AJ119: 0.6956938229 | AK119: 0.6955372013 | AL119: 0.6944696303 | AM119: 0.69306987 | AN119: 0.6926678779 | AO119: 0.6926850059 | AP119: 0.6923189305 | AQ119: 0.6909284068 | AR119: 0.6905396464 | AS119: 0.6904357588 | AT119: 0.6872056996 | AU119: 0.6853393106 | AV119: 0.6888666801 | AW119: 0.6862266231 | AX119: 0.6858550833 | AY119: 0.6846544481 | AZ119: 0.6821032214 | BA119: 0.6802531667 | BB119: 0.6784845804 | BC119: 0.6762730834 | BD119: 0.6738816853 | BE119: 0
A120: Weighted Average Interest Coverage Ratio (calculated at the origination date) | B120: 1.44 | C120: 1.44 | D120: 1.44 | E120: 1.44 | F120: 1.45 | G120: 1.44 | H120: 1.44 | I120: 1.44 | J120: 1.44 | K120: 1.44 | L120: 1.44 | M120: 1.44 | N120: 1.44 | O120: 1.44 | P120: 1.44 | Q120: 1.44 | R120: 1.44 | S120: 1.44 | T120: 1.44 | U120: 1.44 | V120: 1.44 | W120: 1.44 | X120: 1.44 | Y120: 1.44 | Z120: 1.44 | AA120: 1.44 | AB120: 1.44 | AC120: 1.44 | AD120: 1.444562166 | AE120: 1.445479705 | AF120: 1.445539606 | AG120: 1.446043653 | AH120: 1.44656924 | AI120: 1.448732101 | AJ120: 1.449455243 | AK120: 1.450559537 | AL120: 1.447778709 | AM120: 1.450377665 | AN120: 1.452830978 | AO120: 1.446535313 | AP120: 1.447681656 | AQ120: 1.447968663 | AR120: 1.449801966 | AS120: 1.448654702 | AT120: 1.449872036 | AU120: 1.450397572 | AV120: 1.452965157 | AW120: 1.443128662 | AX120: 1.436714731 | AY120: 1.43645886 | AZ120: 1.43438535 | BA120: 1.433832394 | BB120: 1.43431402 | BC120: 1.434891804 | BD120: 1.437098384 | BE120: 0
A121: MTL Lifetime Redemption Rate | B121: 0.0512 | C121: 0.0707 | D121: 0.0782 | E121: 0.114 | F121: 0.1152 | G121: 0.1359 | H121: 0.1459 | I121: 0.1356 | J121: 0.1251 | K121: 0.1162 | L121: 0.1099 | M121: 0.1044 | N121: 0.0999 | O121: 0.0952 | P121: 0.0912 | Q121: 0.0873 | R121: 0.0839 | S121: 0.0809 | T121: 0.0778 | U121: 0.0755 | V121: 0.0739 | W121: 0.0717 | X121: 0.0698 | Y121: 0.0683 | Z121: 0.067 | AA121: 0.0662 | AB121: 0.065 | AC121: 0.0647 | AD121: 0.0646 | AE121: 0.0644 | AF121: 0.064 | AG121: 0.0635 | AH121: 0.0636 | AI121: 0.0634 | AJ121: 0.0635 | AK121: 0.0644 | AL121: 0.0651 | AM121: 0.0657 | AN121: 0.066 | AO121: 0.0658 | AP121: 0.0662 | AQ121: 0.0662 | AR121: 0.0666 | AS121: 0.0674 | AT121: 0.0684 | AU121: 0.0687 | AV121: 0.0694 | AW121: 0.0704 | AX121: 0.0709 | AY121: 0.0707 | AZ121: 0.071 | BA121: 0.071 | BB121: 0.071 | BC121: 0.0713 | BD121: 0.0716 | BE121: 0
A122: Aggregate Potential Redraw Amount | B122: 655643.22 | C122: 765110.8 | D122: 747090.42 | E122: 766303.86 | F122: 801100.51 | G122: 1191744.1 | H122: 1233237.52 | I122: 1279971.36 | J122: 812099.26 | K122: 473134.49 | L122: 463971.82 | M122: 455083.7 | N122: 499600 | O122: 437993.07 | P122: 439639.75 | Q122: 445432.38 | R122: 267680.31 | S122: 255545.99 | T122: 198334.13 | U122: 153890.18 | V122: 140032.08 | W122: 149097.14 | X122: 159789.82 | Y122: 174055.39 | Z122: 162524.95 | AA122: 0 | AB122: 0 | AC122: 0 | AD122: 0 | AE122: 0 | AF122: 0 | AG122: 0 | AH122: 0 | AI122: 0 | AJ122: 0 | AK122: 0 | AL122: 0 | AM122: 0 | AN122: 0 | AO122: 0 | AP122: 0 | AQ122: 0 | AR122: 0 | AS122: 0 | AT122: 0 | AU122: 0 | AV122: 0 | AW122: 0 | AX122: 0 | AY122: 0 | AZ122: 0 | BA122: 0 | BB122: 0 | BC122: 0 | BD122: 0 | BE122: 0
A123: Number of Properties in Possession | B123: 0 | C123: 0 | D123: 0 | E123: 0 | F123: 0 | G123: 0 | H123: 0 | I123: 0 | J123: 0 | K123: 0 | L123: 0 | M123: 0 | N123: 0 | O123: 0 | P123: 0 | Q123: 0 | R123: 0 | S123: 0 | T123: 0 | U123: 0 | V123: 0 | W123: 0 | X123: 0 | Y123: 0 | Z123: 0 | AA123: 0 | AB123: 0 | AC123: 0 | AD123: 1 | AE123: 0 | AF123: 0 | AG123: 0 | AH123: 0 | AI123: 0 | AJ123: 0 | AK123: 1 | AL123: 0 | AM123: 0 | AN123: 0 | AO123: 0 | AP123: 0 | AQ123: 0 | AR123: 0 | AS123: 0 | AT123: 0 | AU123: 0 | AV123: 0 | AW123: 0 | AX123: 0 | AY123: 0 | AZ123: 0 | BA123: 0 | BB123: 0 | BC123: 0 | BD123: 0 | BE123: 0
A124: Appointment of a Receiver of Rent | B124: 2 | C124: 6 | D124: 23 | E124: 37 | F124: 41 | G124: 59 | H124: 84 | I124: 86 | J124: 75 | K124: 82 | L124: 86 | M124: 83 | N124: 83 | O124: 78 | P124: 85 | Q124: 99 | R124: 102 | S124: 107 | T124: 104 | U124: 105 | V124: 100 | W124: 101 | X124: 103 | Y124: 106 | Z124: 103 | AA124: 94 | AB124: 91 | AC124: 81 | AD124: 75 | AE124: 71 | AF124: 69 | AG124: 64 | AH124: 59 | AI124: 60 | AJ124: 61 | AK124: 58 | AL124: 59 | AM124: 60 | AN124: 61 | AO124: 60 | AP124: 59 | AQ124: 55 | AR124: 54 | AS124: 55 | AT124: 55 | AU124: 59 | AV124: 58 | AW124: 58 | AX124: 66 | AY124: 66 | AZ124: 61 | BA124: 60 | BB124: 60 | BC124: 57 | BD124: 54 | BE124: 0
A125: MTL Quarterly Losses | B125: 5 | C125: -5 | D125: 8 | E125: -5 | F125: 26 | G125: 203 | H125: 158 | I125: 208 | J125: 279 | K125: 112 | L125: 117 | M125: 150 | N125: 1 | O125: 218 | P125: 42 | Q125: 0 | R125: 26 | S125: 48 | T125: 47 | U125: 27 | V125: 162 | W125: -5 | X125: 36 | Y125: 133 | Z125: 28 | AA125: 195 | AB125: 123 | AC125: 187 | AD125: 105 | AE125: 189 | AF125: 101 | AG125: 31 | AH125: -17 | AI125: -12 | AJ125: -6 | AK125: 23 | AL125: 232 | AM125: 23 | AN125: -9 | AO125: 30 | AP125: 74 | AQ125: 45 | AR125: -10 | AS125: -13 | AT125: 58 | AU125: -19 | AV125: 34 | AW125: 6 | AX125: -101 | AY125: 51 | AZ125: -13 | BA125: 25 | BB125: -31 | BC125: 65 | BD125: 124 | BE125: 109
A126: Arrears excluding Receiver of Rent and Possession Cases
A127: Performing Loans | B127: 0.9962 | C127: 0.9953 | D127: 0.9934 | E127: 0.9959 | F127: 0.9875 | G127: 0.9831 | H127: 0.9852 | I127: 0.9891 | J127: 0.9891 | K127: 0.9925 | L127: 0.9939 | M127: 0.994 | N127: 0.9935 | O127: 0.9932 | P127: 0.9935 | Q127: 0.9943 | R127: 0.9955 | S127: 0.9969 | T127: 0.9962 | U127: 0.9963 | V127: 0.9968 | W127: 0.999 | X127: 0.9958 | Y127: 0.9955 | Z127: 0.9979 | AA127: 0.999 | AB127: 0.9985 | AC127: 0.9987 | AD127: 0.9978685763 | AE127: 0.9981126397 | AF127: 0.9980734788 | AG127: 0.9987344129 | AH127: 0.9957730743 | AI127: 0.997997742 | AJ127: 0.9970654645 | AK127: 0.9970227706 | AL127: 0.9991688392 | AM127: 0.9989684567 | AN127: 0.9973748309 | AO127: 0.9981600533 | AP127: 0.9990099886 | AQ127: 0.9990841581 | AR127: 0.9988806923 | AS127: 0.9986953743 | AT127: 0.9985827734 | AU127: 0.9967358529 | AV127: 0.9960706157 | AW127: 0.9968424437 | AX127: 0.9962233241 | AY127: 0.9973289637 | AZ127: 0.9979839396 | BA127: 0.9976232762 | BB127: 0.9983655262 | BC127: 0.9965422451 | BD127: 0.9971343954 | BE127: 0
A128: >1 to 2 months arrears | B128: 0.0026 | C128: 0.0036 | D128: 0.0049 | E128: 0.0031 | F128: 0.0076 | G128: 0.0049 | H128: 0.0061 | I128: 0.0032 | J128: 0.0036 | K128: 0.0023 | L128: 0.0019 | M128: 0.002 | N128: 0.0033 | O128: 0.0036 | P128: 0.0038 | Q128: 0.0043 | R128: 0.0038 | S128: 0.0022 | T128: 0.0036 | U128: 0.0035 | V128: 0.0032 | W128: 0.001 | X128: 0.0041 | Y128: 0.004 | Z128: 0.0021 | AA128: 0.0009 | AB128: 0.0014 | AC128: 0.0011 | AD128: 0.001819592446 | AE128: 0.001402592291 | AF128: 0.001507064281 | AG128: 0.001265587067 | AH128: 0.003618575478 | AI128: 0.001593923645 | AJ128: 0.002682769345 | AK128: 0.002704630722 | AL128: 0.0008311607547 | AM128: 0.0005997611768 | AN128: 0.002005836663 | AO128: 0.001211019856 | AP128: 0.0009900113564 | AQ128: 0.0009158419325 | AR128: 0.0005186773396 | AS128: 0.0002031094587 | AT128: 0.001031053569 | AU128: 0.003264147116 | AV128: 0.002787881095 | AW128: 0.001172548874 | AX128: 0.00135194032 | AY128: 0.0003621198483 | AZ128: 0.001199141478 | BA128: 0.001765906522 | BB128: 0.0006029288614 | BC128: 0.0006940941712 | BD128: 0.0002624804178 | BE128: 0
A129: >2 to 3 months arrears | B129: 0.0007 | C129: 0.0011 | D129: 0.0013 | E129: 0.001 | F129: 0.0044 | G129: 0.0071 | H129: 0.002 | I129: 0.0022 | J129: 0.0019 | K129: 0.0009 | L129: 0.001 | M129: 0.0007 | N129: 0.0008 | O129: 0.0009 | P129: 0.0022 | Q129: 0.0009 | R129: 0.0006 | S129: 0.0007 | T129: 0.0002 | U129: 0.0002 | V129: 0 | W129: 0 | X129: 0.0001 | Y129: 0.0003 | Z129: 0 | AA129: 0 | AB129: 0 | AC129: 0.0001 | AD129: 0.0003118312217 | AE129: 0 | AF129: 0.0004194568906 | AG129: 0 | AH129: 0.0003645776757 | AI129: 0 | AJ129: 0 | AK129: 0 | AL129: 0 | AM129: 0 | AN129: 0 | AO129: 0.0001820309345 | AP129: 0 | AQ129: 0 | AR129: 0.0006006303452 | AS129: 0.001101516202 | AT129: 0 | AU129: 0 | AV129: 0 | AW129: 0.001985007474 | AX129: 0.001861621305 | AY129: 0.001736543792 | AZ129: 0.0006013250136 | BA129: 0.000610817247 | BB129: 0.0001797498788 | BC129: 0.001337100859 | BD129: 0.0008003954829 | BE129: 0
A130: >3 months arrears | B130: 0.0005 | C130: 0 | D130: 0.0004 | E130: 0 | F130: 0.0005 | G130: 0.0049 | H130: 0.0067 | I130: 0.0055 | J130: 0.0054 | K130: 0.0043 | L130: 0.0032 | M130: 0.0033 | N130: 0.0024 | O130: 0.0023 | P130: 0.0005 | Q130: 0.0005 | R130: 0.0001 | S130: 0.0002 | T130: 0 | U130: 0 | V130: 0 | W130: 0 | X130: 0 | Y130: 0.0002 | Z130: 0 | AA130: 0.0001 | AB130: 0.0001 | AC130: 0.0001 | AD130: 0 | AE130: 0.0004847680561 | AF130: 0 | AG130: 0 | AH130: 0.0002437725697 | AI130: 0.0004083343796 | AJ130: 0.0002517661757 | AK130: 0.0002725987215 | AL130: 0 | AM130: 0.0004317821089 | AN130: 0.0006193324569 | AO130: 0.0004468959596 | AP130: 0 | AQ130: 0 | AR130: 0 | AS130: 0 | AT130: 0.0003861730103 | AU130: 0 | AV130: 0.001141503212 | AW130: 0 | AX130: 0.0005631142573 | AY130: 0.0005723726742 | AZ130: 0.0002155938802 | BA130: 0 | BB130: 0.0008517950288 | BC130: 0.001426559882 | BD130: 0.001802728686 | BE130: 0
A131: Total | B131: =SUM(B127:B130) -> 1 | C131: 1 | D131: 1 | E131: 1 | F131: 1 | G131: 1 | H131: 1 | I131: 1 | J131: 1 | K131: 1 | L131: 1 | M131: 1 | N131: 1 | O131: 1 | P131: 1 | Q131: 1 | R131: 1 | S131: 1 | T131: =SUM(T127:T130) -> 1 | U131: 1 | V131: 1 | W131: 1 | X131: 1 | Y131: 1 | Z131: =SUM(Z127:Z130) -> 1 | AA131: =SUM(AA127:AA130) -> 1 | AB131: =SUM(AB127:AB130) -> 1 | AC131: =SUM(AC127:AC130) -> 1 | AD131: =SUM(AD127:AD130) -> 1 | AE131: 1 | AF131: 1 | AG131: 1 | AH131: 1 | AI131: 1 | AJ131: 1 | AK131: 1 | AL131: 1 | AM131: 1 | AN131: 1 | AO131: 1 | AP131: 1 | AQ131: 1 | AR131: 1 | AS131: 1 | AT131: 1 | AU131: 1 | AV131: 1 | AW131: 1 | AX131: 1 | AY131: 1 | AZ131: 1 | BA131: 1 | BB131: 1 | BC131: 1 | BD131: 1 | BE131: =SUM(BE127:BE130) -> 0

Sheet Graphs
O2: PARAGON MORTGAGES (NO.14) PLC
